Cogmind - Beta 12 @@@ ROGUE MODE // 2023.03.11 @ 15:04:58 Player: Pogmind Result: Destroyed by H-88 Terminator with KE Penetrator Performance ------------- Evolutions (8) 4000 Regions Visited (31) 6200 Robots Destroyed (457) 2285 Value Destroyed (27608) 27608 Prototype IDs (69) 1380 Alien Tech Used (0) 0 Bonus (16003) 16003 TOTAL SCORE: 57476 Bonus ------- High Alert Combat Kills 2258 Follower Combat Kills 8981 Entered Garrisons 2000 Used RIF Installer 6500 Aligned with FarCom 300 Friendly Fire -4036 Cogmind --------- Core Integrity 0/1450 Matter 292/300 Energy 98/100 System Corruption 33% Temperature Cool (9) Movement Core (50) Location -2/Research Parts ------- > --- POWER (2) -------- (None) > --- PROPULSION (6) --- (None) > --- UTILITY (12) ----- (None) > --- WEAPON (3) ------- Plasma Lance > --- INVENTORY (5) ---- Biometal Heavy Treads Relay Coupler [Proto] (9) Relay Coupler [Proto] (9) Supersonic Drone Bay (1/1) Peak State ------------ > --- POWER ------------ Quantum Reactor Quantum Reactor > --- PROPULSION ------- Biometal Heavy Treads Advanced Heavy Siege Treads Advanced Heavy Siege Treads > --- UTILITY ---------- Huge Storage Unit Experimental Optical Array Advanced Transmission Jammer Advanced Cloaking Device Relay Coupler [NC] Relay Coupler [C] Relay Coupler [Sentry] Relay Coupler [Specialist] Relay Coupler [Hunter] Relay Coupler [Heavy] Relay Coupler [Proto] Sensor Drone Bay > --- WEAPON ----------- Heavy Quantum Rifle Enhanced Nova Cannon Enhanced Nova Cannon > --- INVENTORY -------- Zero-point Reactor Experimental Cooling System Experimental Cooling System Quantum Capacitor Relay Coupler [NC] Relay Coupler [NC] Relay Coupler [C] Relay Coupler [C] Relay Coupler [Cutter] Relay Coupler [Demolisher] Relay Coupler [Hunter] Relay Coupler [Behemoth] Relay Coupler [Behemoth] Relay Coupler [Behemoth] Relay Coupler [Proto] Relay Coupler [Proto] Relay Coupler [Proto] Supersonic Drone Bay Compact HERF Cannon Cooled Nova Cannon Disintegrator Advanced Remote Datajack Nanosword [Rating: 192] Favorites ----------- Power Heavy Ion Engine Engine Heavy Ion Engine Power Core Nuclear Core Reactor Particle Reactor Propulsion Light Treads Treads Light Treads Leg Aluminum Leg Hover Unit Antigrav System Utility Huge Storage Unit Device Cooling System Storage Huge Storage Unit Processor Experimental Optical Array Hackware Relay Coupler [Sentry] Protection Hardened Light Armor Plating Weapon Heavy Assault Cannon Energy Gun Gatling Laser Energy Cannon Enhanced Nova Cannon Ballistic Gun Assault Rifle Ballistic Cannon Heavy Assault Cannon Launcher Rocket Launcher Special Weapon Remote Datajack Impact Weapon Powered Hammer Slashing Weapon Katana Piercing Weapon Plasma Lance Special Melee Weapon Improved Datajack Build | -11 -10 -10 -9 -9 -9 -8 -8 -8 -8 -8 -8 -7 -7 -6 -6 -6 -6 -6 -6 -6 -6 -5 -5 -4 -4 -4 -4 -3 -3 -3 -2 ------- Run | Jun Mat Min Mat Min Exi Min Mat Gar Mat Gar Mat Fac Gar Fac Gar Fac Gar Fac Gar Fac Gar Fac Gar Fac Was Fac Gar Res Tes Gar Res Slots Evolved 16 | . . . 2 . . . 2 . . . . 2 . 2 . . . . . . . 2 . 2 . . . 2 . . 2 Power 1 | . . . . . . . . . . . . . . . . . . . . . . . . 1 . . . . . . . Propulsion 4 | . . . 1 . . . 1 . . . . . . . . . . . . . . . . . . . . . . . 2 Utility 10 | . . . 1 . . . 1 . . . . 2 . 1 . . . . . . . 2 . 1 . . . 2 . . . Weapon 1 | . . . . . . . . . . . . . . 1 . . . . . . . . . . . . . . . . . Parts Attached 953 | 8 5 12 46 5 4 . 65 45 31 31 37 16 38 13 62 18 42 9 51 3 54 7 33 7 4 8 28 38 88 65 80 Power 49 | 1 . 1 3 . 1 . . 1 1 1 2 1 1 . 2 . 3 . 2 . 3 . 1 1 . . . 2 10 10 2 Engine 15 | 1 . 1 2 . 1 . . 1 . 1 2 1 1 . . . 1 . . . 1 . . . . . . . 1 1 . Core 4 | . . . 1 . . . . . 1 . . . . . 1 . . . 1 . . . . . . . . . . . . Reactor 30 | . . . . . . . . . . . . . . . 1 . 2 . 1 . 2 . 1 1 . . . 2 9 9 2 Propulsion 83 | 2 . 1 8 . . . 16 4 4 2 4 1 4 1 7 1 . . 3 . 6 . 2 . . . . 2 4 6 5 Treads 81 | 2 . 1 8 . . . 15 4 4 2 4 1 4 1 7 1 . . 3 . 6 . 2 . . . . 2 4 6 4 Leg 1 | . . . . . . . 1 . . . . . . . . . . . . . . . . . . . . . . . . Wheel . | . . . . . . . . . . . . . . . . . . . . . . . . . . . . . . . . Hover 1 | . . . . . . . . . . . . . . . . . . . . . . . . . . . . . . . 1 Flight . | . . . . . . . . . . . . . . . . . . . . . . . . . . . . . . . . Utility 409 | 2 2 3 19 . . . 27 22 14 9 11 13 17 4 25 11 20 6 18 2 20 4 19 5 4 3 19 22 32 21 35 Device 236 | 1 . 3 9 . . . 18 15 2 2 3 7 7 1 9 7 9 4 8 . 13 4 5 5 3 3 11 19 24 9 35 Storage 15 | 1 2 . 2 . . . . . 1 . . 1 . . . 2 2 . 1 . . . . . . . . . 3 . . Processor 15 | . . . 2 . . . 2 . . . 1 1 . . 2 1 . . 1 . . . 4 . . . . . 1 . . Hackware 89 | . . . . . . . 2 4 3 2 1 . 6 2 9 1 9 1 8 2 6 . 10 . . . 7 3 2 11 . Protection 54 | . . . 6 . . . 5 3 8 5 6 4 4 1 5 . . 1 . . 1 . . . 1 . 1 . 2 1 . Artifact . | . . . . . . . . . . . . . . . . . . . . . . . . . . . . . . . . Weapon 412 | 3 3 7 16 5 3 . 22 18 12 19 20 1 16 8 28 6 19 3 28 1 25 3 11 1 . 5 9 12 42 28 38 Energy Gun 31 | 1 . . 7 . . . . . . . 3 . 7 1 1 . . . . . . . . . . . . . 3 2 6 Energy Cannon 36 | . 2 3 4 1 1 . 2 . . . 1 . . . . . . . 1 . . . . . . . . . 4 8 9 Ballistic Gun 8 | 2 . 1 . . . . 1 . . . . . . . 2 1 1 . . . . . . . . . . . . . . Ballistic Cannon 84 | . . . 1 2 1 . 12 8 6 10 7 . . 3 5 1 2 . 3 . 3 . . . . . 1 . 14 5 . Launcher 23 | . 1 3 1 2 . . 4 4 1 2 1 . 3 . 1 . . . . . . . . . . . . . . . . Special Weapon 113 | . . . . . . . . . . 5 6 . 2 2 8 2 8 1 13 . 11 2 6 1 . 2 4 6 12 8 14 Impact Weapon 24 | . . . 2 . . . . . . . . . . 1 11 2 8 . . . . . . . . . . . . . . Slashing Weapon 56 | . . . 1 . 1 . 3 1 2 2 2 1 4 1 . . . 2 11 1 7 . . . . . . . 4 5 8 Piercing Weapon 29 | . . . . . . . . . . . . . . . . . . . . . 4 1 5 . . 3 4 6 5 . 1 Special Melee Weapon 8 | . . . . . . . . 5 3 . . . . . . . . . . . . . . . . . . . . . . Unidentified Prototypes 24 | . . 1 3 . . . 1 . . . . 1 . . 1 3 . . . . . . . . . . . . 12 . 2 Corrupted Parts 3 | . . . . . . . . . . . . . . . . . . . . . . . . . . . . . . 3 . System Corruption 22 | . . . . . . . . . . . . . . . . . . . . . . . . . . . . . . 22 . Parts Lost 87 | . . 3 10 . . . 5 6 . . 6 1 2 . 1 . 2 . . . 2 . . . . . . 1 11 5 32 Power 14 | . . 1 . . . . . 1 . . 1 1 . . . . . . . . 1 . . . . . . . 4 1 4 Propulsion 23 | . . 1 3 . . . 4 4 . . 3 . 1 . 1 . . . . . . . . . . . . . 1 1 4 Utility 32 | . . . 3 . . . . 1 . . 1 . 1 . . . 2 . . . 1 . . . . . . 1 4 1 17 Weapon 18 | . . 1 4 . . . 1 . . . 1 . . . . . . . . . . . . . . . . . 2 2 7 Highest Loss Streak 31 | . . 2 4 . . . 3 4 . . 3 1 2 . 1 . 1 . . . 1 . . . . . . 1 7 2 31 To Critical Strikes 2 | . . . . . . . . . . . 1 . . . . . . . . . 1 . . . . . . . . . . Average Slot Usage (%) 84 | . 100 99 94 79 77 77 80 81 80 77 82 91 95 97 94 79 79 79 79 80 79 77 79 82 84 83 83 83 79 85 79 Engine 5 | . 14 14 8 11 11 11 9 9 7 7 8 7 7 6 4 . . . . . . . . . . . . . . . . Reactor 2 | . . . . . . . . . . . . . . . 1 6 6 6 5 6 5 5 5 8 10 10 10 9 7 8 7 Treads 25 | . 28 28 31 33 33 33 35 35 36 36 36 30 29 26 25 13 13 13 12 13 13 11 11 10 10 10 10 8 8 8 11 Device 7 | . 14 13 11 . . . 7 7 3 . 1 14 6 3 8 12 10 5 7 . 3 12 6 15 11 10 10 11 11 13 11 Storage 8 | . 14 14 11 11 11 11 9 9 9 9 9 7 7 6 6 7 9 9 6 6 6 5 5 5 5 5 5 4 5 4 3 Processor 2 | . . . . . . . . . . . . 3 7 6 5 . . . 1 6 6 5 5 5 5 5 5 4 5 4 3 Hackware 11 | . . . . . . . . 1 5 6 5 . 10 15 10 19 20 26 25 33 28 23 31 26 26 25 25 33 26 32 28 Protection 6 | . . . 7 11 11 11 8 8 8 7 10 10 6 12 12 6 4 2 4 . . . . . 3 5 4 . . . . Energy Cannon 1 | . 12 11 11 2 . . . . . . . . . . . . . . . . . . . . . . . . . 1 6 Ballistic Cannon 5 | . . . 1 8 . 11 8 7 7 7 3 . . 5 7 5 5 6 5 6 5 5 5 5 5 5 5 4 3 2 . Special Weapon 1 | . . . . . . . . . . . 1 . 3 4 . 4 3 2 2 2 1 3 2 3 5 4 3 2 1 1 3 Slashing Weapon 1 | . . . . . 11 . . 1 . . 2 . 4 4 . . . 3 3 3 1 . . . . . . . 1 3 . Naked Turns 6 | . . . . . . . . . . . . . . . . . . . . . . . . . . . . . . . 6 Heaviest Build 176 | 15 31 31 165 165 165 165 167 168 174 176 169 161 121 125 146 142 141 125 125 121 122 124 124 151 145 158 159 152 162 158 169 Greatest Support 235 | 40 40 40 60 60 60 60 89 89 86 86 86 82 80 80 150 150 150 150 150 150 150 150 150 150 150 150 150 150 140 155 235 Greatest Overweight (x) 34 | . . . 2 2 2 2 2 2 2 2 2 1 1 1 1 . . . . . 1 . . 1 . 1 1 1 1 2 34 Average Overweight (x) . | . . . 1 2 2 2 1 1 1 1 1 1 1 1 . . . . . . . . . . . . . . . . . Largest Inventory Capacity 30 | 8 15 15 30 30 30 30 30 30 30 30 30 30 25 25 25 25 25 25 25 25 25 25 25 25 25 25 25 25 25 25 25 Average Capacity 26 | 7 11 15 25 30 30 30 30 30 30 30 30 25 25 25 25 25 25 25 25 25 25 25 25 25 25 25 25 25 25 25 23 Most Carried 30 | 4 14 15 30 30 30 29 30 30 30 30 30 30 25 25 25 25 25 25 25 25 25 25 25 25 25 25 25 25 25 25 25 Average Carried 25 | 3 10 14 22 29 29 29 28 28 29 29 28 25 24 24 24 24 24 25 24 24 24 25 24 24 25 25 24 24 24 24 23 Final Capacity 30 | 8 15 15 30 30 30 30 30 30 30 30 30 25 25 25 25 25 25 25 25 25 25 25 25 25 25 25 25 25 25 25 5 Final Carried 30 | 4 14 14 30 30 29 29 30 30 30 30 30 25 25 25 25 25 25 25 25 24 25 25 25 25 25 25 25 25 25 25 5 Class Distribution -------------------- 43% | Botlord-Mutant 38% | Hauler-Mutant 8% | Mutant 5% | Scavenger-Mutant 3% | Bothacker-Mutant Dominant Class ---------------- Mutant | -10/Materials Mutant | -10/Mines Scavenger-Mutant | -9/Materials Hauler-Mutant | -9/Mines Hauler-Mutant | -9/Exiles Hauler-Mutant | -8/Mines Hauler-Mutant | -8/Materials Hauler-Mutant | -8/Garrison Hauler-Mutant | -8/Materials Bothacker-Mutant | -8/Garrison Hauler-Mutant | -8/Materials Mutant | -7/Factory Botlord-Mutant | -7/Garrison Botlord-Mutant | -6/Factory Botlord-Mutant | -6/Garrison Botlord-Mutant | -6/Factory Botlord-Mutant | -6/Garrison Botlord-Mutant | -6/Factory Botlord-Mutant | -6/Garrison Botlord-Mutant | -6/Factory Botlord-Mutant | -6/Garrison Botlord-Mutant | -5/Factory Botlord-Mutant | -5/Garrison Botlord-Mutant | -4/Factory Botlord-Mutant | -4/Waste Botlord-Mutant | -4/Factory Botlord-Mutant | -4/Garrison Botlord-Mutant | -3/Research Botlord-Mutant | -3/Testing Botlord-Mutant | -3/Garrison Botlord-Mutant | -2/Research Resources | -11 -10 -10 -9 -9 -9 -8 -8 -8 -8 -8 -8 -7 -7 -6 -6 -6 -6 -6 -6 -6 -6 -5 -5 -4 -4 -4 -4 -3 -3 -3 -2 ----------- Run | Jun Mat Min Mat Min Exi Min Mat Gar Mat Gar Mat Fac Gar Fac Gar Fac Gar Fac Gar Fac Gar Fac Gar Fac Was Fac Gar Res Tes Gar Res Matter Collected 24363 | 339 353 115 779 145 116 274 1816 1225 723 786 866 69 735 216 1349 256 1418 154 1309 . 1678 130 993 107 245 112 1095 1491 1959 1958 1552 Remotely 6215 | . . . . . . . 509 536 50 169 309 . 226 . 397 161 601 77 334 . 481 130 . . . . 171 625 932 507 . Salvage Created 18262 | 150 658 119 1918 59 11 70 1138 800 571 718 766 139 647 86 805 49 187 38 1463 110 324 101 850 . . 97 289 1047 1309 1754 1989 Parts 940 | 14 50 12 87 7 . 2 89 52 41 57 31 4 50 2 41 3 10 8 43 3 18 8 30 . . 5 14 45 64 58 92 Haulers Intercepted 14 | . 2 . 5 . . . 5 . . . 2 . . . . . . . . . . . . . . . . . . . . Recyclers Shooed 13 | . . . 4 . . . . . . . 1 2 . 2 . . . . . . . . . . . . . 2 . . 2 Parts Field Recycled . | . . . . . . . . . . . . . . . . . . . . . . . . . . . . . . . . Retrieved Matter . | . . . . . . . . . . . . . . . . . . . . . . . . . . . . . . . . Parts Self-Destructed . | . . . . . . . . . . . . . . . . . . . . . . . . . . . . . . . . Prevented . | . . . . . . . . . . . . . . . . . . . . . . . . . . . . . . . . Kills | -11 -10 -10 -9 -9 -9 -8 -8 -8 -8 -8 -8 -7 -7 -6 -6 -6 -6 -6 -6 -6 -6 -5 -5 -4 -4 -4 -4 -3 -3 -3 -2 ------- Run | Jun Mat Min Mat Min Exi Min Mat Gar Mat Gar Mat Fac Gar Fac Gar Fac Gar Fac Gar Fac Gar Fac Gar Fac Was Fac Gar Res Tes Gar Res Combat Hostiles Destroyed 333 | . 12 11 33 4 . 1 31 29 15 23 9 3 27 2 8 1 8 . 13 2 8 3 7 . . 1 7 9 23 23 20 Melee 26 | . . . . . . . 1 2 6 2 . . 2 . . . 1 . 1 . . . 1 . . . . . 3 5 2 Guns 27 | . . . 11 . . . . . . . 3 3 6 . . . . . . . . . . . . . . . . 1 3 Cannons 203 | . 9 2 17 4 . 1 22 16 6 15 5 . . 2 4 1 7 . 11 1 8 3 6 . . 1 7 9 20 14 12 AOE 70 | . 3 9 4 . . . 8 11 3 6 1 . 18 . 4 . . . 1 1 . . . . . . . . . . 1 Classes Destroyed 21 | 3 5 . 3 1 . 1 1 2 . 1 . . . . 1 . 1 . . . 2 . . . . . . . . . . Worker 14 | 2 . . . . . . 3 . 1 . . 1 . 1 . . . . . . . . . . . . . 3 . . 3 Builder 17 | . . . . . . . 6 . . . 1 . . . . . . 1 . . . . . . . 1 . 5 2 . 1 Tunneler 4 | 3 . . . . . . . . . . . . . . . . . . . . . . . . . . . . . . 1 Hauler 14 | . 2 . 5 . . . 5 . . . 2 . . . . . . . . . . . . . . . . . . . . Recycler 26 | 1 1 . 6 . . 1 2 . . . 6 . . . . . . . . . . . . . . . . 3 2 . 4 Mechanic 1 | . . . 1 . . . . . . . . . . . . . . . . . . . . . . . . . . . . Operator 8 | . 1 . . . 1 . . . 2 . 2 . . . . . . 1 . . . . . . . . . . 1 . . Watcher 27 | . 3 . 5 . . . 5 . 5 . 3 . . . . . . . . . . . . . . . . 2 2 . 2 Swarmer 90 | . 3 9 10 2 . . 13 6 6 4 1 . 19 . 4 . 1 . 3 . 1 . 1 . . . . . 1 3 3 Cutter 14 | . . . . . . . . 5 . 3 . . 3 . 3 . . . . . . . . . . . . . . . . Saboteur 2 | . . . . . . . . . . . . . . . . . 1 . . . . . 1 . . . . . . . . Grunt 93 | . 9 2 12 . . . 10 8 5 7 7 2 3 1 . . . . 3 . 3 . 4 . . . 2 4 1 8 2 Brawler 5 | . . . 1 . . . . . . . . . . . . . . . 3 . . . . . . . . 1 . . . Duelist 3 | . . . . . . . . 1 . . . . 1 . . . . . . . . . 1 . . . . . . . . Sentry 51 | . . . 10 . . . 7 8 3 7 . . . . . . 3 . 5 . 1 1 . . . 1 . . 2 2 1 Demolisher 3 | . . . . 2 . . . . . . . . . . . 1 . . . . . . . . . . . . . . . Specialist 5 | . . . . . . . . . . . . . . . 1 . 2 . . 2 . . . . . . . . . . . Hunter 26 | . . . . . . 1 1 2 1 1 1 . 1 . . . . . 1 . . . . . . . 2 3 . 7 5 Programmer 48 | . . . . . . . . . . 1 . 1 2 1 . . 1 . . . 3 2 . . . . 3 2 19 4 9 Behemoth 1 | . . . . . . . . . . . . . . . . . . . . . 1 . . . . . . . . . . Striker 1 | . . . . . . . . . . . . . . . . . . . . . 1 . . . . . . . . . . Protovariant P 1 | . . . . . . . . . . . . . . . . . . . . . . . . . . . . . 1 . . Thug 1 | . . . . . . . . 1 . . . . . . . . . . . . . . . . . . . . . . . Martyr 1 | . . . . . . . . . . . . . . . . . . . . . . . . . . 1 . . . . . Infiltrator 1 | . . . . . . . . . . . . . . . . . . . 1 . . . . . . . . . . . . Best Kill Streak 11 | 3 3 3 9 2 . 1 11 6 5 4 3 2 11 2 4 1 3 1 4 2 3 3 3 . . 1 3 5 4 4 4 Combat Bots Only 11 | . 3 3 5 2 . 1 8 6 3 4 3 2 11 1 4 1 3 . 4 2 3 3 3 . . 1 3 3 4 4 4 Max Kills in Single Turn 4 | 1 3 3 2 1 1 1 4 4 3 4 1 1 4 1 4 1 1 1 1 1 1 1 1 . . 1 1 2 1 1 2 Gunslinging . | . . . . . . . . . . . . . . . . . . . . . . . . . . . . . . . . Exploded 4 | . 3 3 2 . . . 2 4 2 4 1 . 4 . 4 . . . 1 1 . . . . . . . . . . 1 Melee 1 | . . . . . . . 1 1 1 1 . . 1 . . . 1 . 1 . . . 1 . . . . . 1 1 1 Uniques/NPCs Destroyed . | . . . . . . . . . . . . . . . . . . . . . . . . . . . . . . . . Combat | -11 -10 -10 -9 -9 -9 -8 -8 -8 -8 -8 -8 -7 -7 -6 -6 -6 -6 -6 -6 -6 -6 -5 -5 -4 -4 -4 -4 -3 -3 -3 -2 -------- Run | Jun Mat Min Mat Min Exi Min Mat Gar Mat Gar Mat Fac Gar Fac Gar Fac Gar Fac Gar Fac Gar Fac Gar Fac Was Fac Gar Res Tes Gar Res Damage Taken 27274 | . 128 471 1572 185 . 209 1118 1847 451 1274 731 154 1074 109 727 239 741 105 788 190 1439 166 560 . . . 518 410 3857 1585 6626 Core 3544 | . 10 25 273 43 . 50 123 197 99 54 58 12 86 . 101 13 69 . 87 6 55 . 71 . . . 37 36 459 125 1455 Absorbed by Shields 2959 | . . . . . . . . . . 38 . 59 322 12 225 105 306 . . . 107 . . . . . 227 221 548 789 . Reduced by Siege Mode 1869 | . . . . . . . . . . . . . . . . 4 38 . 56 42 214 30 37 . . . 11 21 341 144 931 Regen/Repaired (Parts) 1643 | . . . 122 . . . . . 338 . . . . 240 . 234 . . . . . . . . 77 . 101 . 531 . . Core Remaining (%) 64 | 100 . 86 . . . 8 . . . . 3 . 86 . . . . . . . 61 . 92 . . . 96 . . 52 . Volleys Fired 1697 | 11 36 14 110 7 . 20 126 68 26 61 59 8 48 19 95 23 89 16 83 8 76 7 88 1 14 16 73 94 133 101 167 Largest 3 | 2 2 2 2 1 . 1 1 1 1 1 2 2 2 2 3 1 1 1 1 1 1 1 1 1 1 1 1 1 1 3 3 Hottest 320 | 40 80 80 136 60 . 60 60 60 60 60 160 160 160 96 144 75 75 75 75 75 75 75 75 7 7 75 75 75 83 240 320 Shots Fired 1959 | 22 69 20 221 9 1 20 126 68 26 60 71 15 63 22 112 23 90 17 84 9 77 7 88 1 14 16 73 94 120 97 224 Gun 344 | 22 34 6 123 . . . . . . . 17 15 29 . 59 . . . . . . . . . . . . . . 5 34 Cannon 1097 | . 34 6 96 9 1 20 121 60 24 46 33 . . 7 29 3 47 4 45 4 61 4 38 . . 8 48 74 98 63 114 Launcher 41 | . 1 8 2 . . . 5 8 2 3 1 . 10 . 1 . . . . . . . . . . . . . . . . Special 477 | . . . . . . . . . . 11 20 . 24 15 23 20 43 13 39 5 16 3 50 1 14 8 25 20 22 29 76 Kinetic 975 | 22 34 6 46 9 . 20 121 60 24 46 33 . . 7 88 3 47 4 45 4 61 4 38 . . 8 48 74 80 43 . Thermal 448 | . 34 6 173 . 1 . . . . . 17 15 29 . . . . . . . . . . . . . . . 18 15 140 Explosive 41 | . 1 8 2 . . . 5 8 2 3 1 . 10 . 1 . . . . . . . . . . . . . . . . Electromagnetic 18 | . . . . . . . . . . . . . . . . . . . . . . . . . . . . . . 10 8 Robot Hit Streak 64 | 6 13 11 18 3 . 4 9 16 9 6 15 14 11 9 64 7 15 3 14 3 12 6 25 5 12 14 18 12 13 22 21 Robot Miss Streak 5 | 1 4 1 5 1 . 2 3 2 4 2 3 3 5 1 2 4 3 5 2 1 1 1 3 . 2 . 4 2 2 2 2 Penetration Max 1 | . . . . . . . 1 . 1 1 . . . . . . . . . . . . . . . . . 1 . . . Secondary Targets 1 | . . . . . . . . . . . 1 . . . . . . . . . . . . . . . . . . . . Max Gunslinging Chain 1 | . . . . . . . . . . . 1 . . . . . . . . . . . . . . . . . . . . Shots Hit Robots 1467 | 15 38 12 148 5 . 11 78 45 46 43 56 15 52 18 96 14 60 8 96 6 57 6 76 1 11 13 37 60 109 94 141 Core Hits 541 | 6 24 16 57 4 1 2 49 39 18 23 24 9 49 3 34 1 7 2 25 1 8 3 11 . . 3 8 20 34 28 32 Critical Kills 2 | . . . 1 . . . . . . . . . . . 1 . . . . . . . . . . . . . . . . Critical Parts Destroyed . | . . . . . . . . . . . . . . . . . . . . . . . . . . . . . . . . Critical Strikes 89 | . . . 4 1 . . 10 2 9 6 5 . . 1 4 . 8 . 6 1 7 . 5 . . . . 3 9 6 2 Burn 3 | . . . 3 . . . . . . . . . . . . . . . . . . . . . . . . . . . . Meltdown 1 | . . . 1 . . . . . . . . . . . . . . . . . . . . . . . . . . . . Destroy 1 | . . . . . . . . . . . . . . . 1 . . . . . . . . . . . . . . . . Blast 66 | . . . . 1 . . 10 2 5 5 5 . . 1 3 . 8 . 4 1 6 . 2 . . . . 3 7 3 . Sever 12 | . . . . . . . . . 4 1 . . . . . . . . 2 . 1 . . . . . . . . 3 1 Impale 6 | . . . . . . . . . . . . . . . . . . . . . . . 3 . . . . . 2 . 1 Melee Attacks 507 | . . . 7 . . . 7 15 31 11 5 1 19 2 53 3 14 17 83 . 54 6 53 . . 5 7 15 28 54 17 Impact 76 | . . . 6 . . . . . . . . . . . 53 3 14 . . . . . . . . . . . . . . Slashing 278 | . . . 1 . . . 7 5 21 11 5 1 19 2 . . . 17 83 . 25 . . . . . . . 17 54 10 Piercing 133 | . . . . . . . . . . . . . . . . . . . . . 29 6 53 . . 5 7 15 11 . 7 Sneak Attacks 62 | . . . . . . . 5 . 15 2 4 . 4 1 . . . 2 3 . 2 . . . . 2 . 5 5 6 6 Combat Hostiles 21 | . . . . . . . . . 11 2 . . 2 . . . . . 1 . . . . . . . . . . 3 2 Follow-up Attacks . | . . . . . . . . . . . . . . . . . . . . . . . . . . . . . . . . Damage Inflicted 60773 | 179 768 576 3117 348 20 461 5407 2545 2325 2324 2094 412 2359 223 2248 136 1932 257 5008 126 2938 335 2966 . . 405 1541 3419 7280 4881 4143 Guns 5447 | 179 217 45 1287 . . . . . . . 366 400 540 . 1437 . . . . . . . . . . . . . . 103 873 Cannons 37450 | . 373 109 1515 337 20 461 4186 1738 838 1627 1105 . . 147 566 52 1932 82 2182 126 2808 335 1065 . . 208 1541 2963 6438 2356 2340 Explosions 4958 | . 132 397 234 . . . 793 738 389 428 164 . 1438 . 245 . . . . . . . . . . . . . . . . Melee 12236 | . . . . . . . 376 69 1077 269 276 . 381 64 . 57 . 162 2826 . 130 . 1901 . . 197 . 389 835 2422 805 Ramming 682 | . 46 25 81 11 . . 52 . 21 . 183 12 . 12 . 27 . 13 . . . . . . . . . 67 7 . 125 Kinetic 33986 | 179 217 45 354 337 . 461 4186 1738 838 1627 1105 . . 147 2003 52 1932 82 2182 126 2808 335 1065 . . 208 1541 2963 5619 1836 . Thermal 8262 | . 373 109 2448 . 20 . . . . . 366 400 540 . . . . . . . . . . . . . . . 819 322 2865 Explosive 4958 | . 132 397 234 . . . 793 738 389 428 164 . 1438 . 245 . . . . . . . . . . . . . . . . Electromagnetic 649 | . . . . . . . . . . . . . . . . . . . . . . . . . . . . . . 301 348 Impact 57 | . . . . . . . . . . . . . . . . 57 . . . . . . . . . . . . . . . Slashing 8980 | . . . . . . . 376 69 1077 269 276 . 381 64 . . . 162 2826 . 130 . . . . . . . 451 2422 477 Piercing 3199 | . . . . . . . . . . . . . . . . . . . . . . . 1901 . . 197 . 389 384 . 328 Highest Corruption 83 | . . 2 3 3 3 3 . . . 5 5 1 2 2 2 2 3 3 3 3 5 . . . . . . 1 58 83 33 Average Corruption 9 | . . 2 3 3 3 3 . . . 4 5 1 1 1 2 2 2 3 3 3 3 . . . . . . 1 32 64 7 Corruption Purged 5 | . . . . . . . . . . . . . . . . . . . . . . . . . . . . 1 4 . . Corruption Blocked 15 | . . . . . . . . . . . . . . . . . . . . . . . . . . . . . 15 . . Effects 750 | . . 12 74 41 18 5 . . . 41 69 1 13 4 39 9 32 9 33 8 45 . . . . . . 3 93 151 50 Message Errors 173 | . . 2 20 12 1 . . . . 12 12 1 4 . 8 3 7 3 9 . 13 . . . . . . 1 25 30 10 Matter Fused 183 | . . 4 13 7 8 2 . . . 8 15 . 1 1 12 3 12 1 7 3 15 . . . . . . . 23 38 10 Heat Flow Errors 80 | . . 2 9 8 2 2 . . . 5 7 . 1 1 5 1 2 1 5 1 5 . . . . . . . 5 16 2 Energy Discharges 91 | . . 1 11 4 4 . . . . 8 7 . 2 . 4 1 4 1 . 2 4 . . . . . . . 10 23 5 Parts Rejected 7 | . . . . . . . . . . . 2 . . . . . 1 . 1 . 1 . . . . . . . . 1 1 Parts Fused 5 | . . 1 . 1 . . . . . . . . . . 1 . 1 . . . . . . . . . . . . 1 . Data Loss (minor) 81 | . . 1 5 7 1 1 . . . 2 12 . 2 1 3 1 3 . 5 . 2 . . . . . . 1 9 17 8 Data Loss (major) 42 | . . 1 6 . 1 . . . . 1 7 . 1 . 3 . . 1 2 1 4 . . . . . . . 5 4 5 Misfires 26 | . . . 5 2 1 . . . . 2 4 . 1 1 2 . 1 1 2 1 1 . . . . . . . . 1 1 Alerts 18 | . . . 4 . . . . . . . 3 . 1 . 1 . 1 1 1 . . . . . . . . 1 2 2 1 Misdirections 11 | . . . . . . . . . . . . . . . . . . . . . . . . . . . . . 1 4 6 Weapon Failures 33 | . . . 1 . . . . . . 3 . . . . . . . . 1 . . . . . . . . . 13 14 1 Overload Shots . | . . . . . . . . . . . . . . . . . . . . . . . . . . . . . . . . Overflow Damage 4556 | . . . 24 30 . 70 465 89 202 77 190 . 149 35 . . 299 53 345 . 283 41 164 . . . 131 403 910 310 286 Projectiles 3274 | . . . 24 30 . 70 447 76 103 62 66 . . 1 . . 299 . 136 . 283 41 113 . . . 131 369 731 144 148 Explosions 127 | . . . . . . . . 13 20 . 27 . 67 . . . . . . . . . . . . . . . . . . Melee 1155 | . . . . . . . 18 . 79 15 97 . 82 34 . . . 53 209 . . . 51 . . . . 34 179 166 138 Knockbacks 129 | . 2 . . 2 . 2 21 7 4 2 6 . . 2 3 . 7 1 4 1 7 . 7 . . . 6 16 23 4 2 Impact 5 | . 2 . . . . . . . . . 1 . . . . . . . . . . . . . . . . . . . 2 Kinetic 115 | . . . . 2 . 2 18 7 4 2 5 . . 1 3 . 7 1 4 1 7 . 7 . . . 5 13 22 4 . Secondary 9 | . . . . . . . 3 . . . . . . 1 . . . . . . . . . . . . 1 3 1 . . Self-Inflicted Damage 507 | . . 22 . . . . 55 146 . . . . 267 17 . . . . . . . . . . . . . . . . . Shots 15 | . . 2 . . . . 2 3 . . . . 7 1 . . . . . . . . . . . . . . . . . Rammed 62 | . 8 4 9 1 . . 4 . 4 . 11 2 . 3 . 3 . 2 . . . . . . . . . 4 2 . 5 Targets Rammed 75 | . 10 4 10 1 . . 4 . 4 . 14 3 . 4 . 3 . 2 . . . . . . . . . 7 2 . 7 Kicked . | . . . . . . . . . . . . . . . . . . . . . . . . . . . . . . . . Crushed 13 | . 2 . 1 . . . . . . . 3 1 . 1 . . . . . . . . . . . . . 3 . . 2 Highest Temperature 313 | . 114 233 263 262 207 277 20 20 65 263 271 156 188 136 225 161 98 61 184 212 171 54 44 . . 54 291 41 313 290 306 Average Temperature 61 | . 33 75 54 87 86 88 10 11 25 46 75 79 56 35 76 75 48 38 47 63 38 32 13 . . 26 96 18 65 82 76 Received Heat Transfer 3623 | . 90 54 564 . . . 387 648 90 332 279 64 119 21 33 37 50 . 204 18 183 48 81 . . . 80 27 85 93 36 Effects 10 | . . 2 . . . . . . . 1 1 . . . . . . . . . . . . . . . . . 2 4 . Energy Bleed 3 | . . . . . . . . . . . 1 . . . . . . . . . . . . . . . . . . 2 . Interference 7 | . . 2 . . . . . . . 1 . . . . . . . . . . . . . . . . . . 2 2 . Siege Activations 72 | . . . . . . . . . . . . . . . . 1 4 . 6 1 10 1 5 . . 1 4 7 14 12 6 Total Turns 1047 | . . . . . . . . . . . . . . . . 4 64 . 75 18 157 13 53 . . 5 59 78 226 157 138 Longest Duration 54 | . . . . . . . . . . . . . . . . 4 24 . 30 18 54 13 18 . . 5 25 21 39 47 46 Robots Corrupted 2 | . . . . . . . . . . . . . . . . . . . . . . . . . . . . . . 2 . Combat Hostiles 2 | . . . . . . . . . . . . . . . . . . . . . . . . . . . . . . 2 . Parts Fried 3 | . . . . . . . . . . . . . . . . . . . . . . . . . . . . . . 2 1 Impact Corruptions 6 | . . . . . . . 1 . . . 1 . . . . . . . . . . . . . . . . 2 1 . 1 Robots Melted 4 | . . . 2 . . . . . . . . . 1 . . . . . . . . . . . . . . . . . 1 Combat Hostiles 3 | . . . 1 . . . . . . . . . 1 . . . . . . . . . . . . . . . . . 1 Parts Melted 41 | . . . 15 . . . . 1 . . 1 3 1 . . . . . 2 1 . . . . . . 1 . 2 7 7 Heat Transferred 11823 | . 777 222 4995 . 37 . . . . . 775 825 1084 . . . . . . . . . . . . . . . 592 222 2294 Parts Sabotaged . | . . . . . . . . . . . . . . . . . . . . . . . . . . . . . . . . Parts Stolen . | . . . . . . . . . . . . . . . . . . . . . . . . . . . . . . . . Parts Stripped . | . . . . . . . . . . . . . . . . . . . . . . . . . . . . . . . . Power Chain Reactions . | . . . . . . . . . . . . . . . . . . . . . . . . . . . . . . . . Missiles Intercepted . | . . . . . . . . . . . . . . . . . . . . . . . . . . . . . . . . Alert | -11 -10 -10 -9 -9 -9 -8 -8 -8 -8 -8 -8 -7 -7 -6 -6 -6 -6 -6 -6 -6 -6 -5 -5 -4 -4 -4 -4 -3 -3 -3 -2 ------- Run | Jun Mat Min Mat Min Exi Min Mat Gar Mat Gar Mat Fac Gar Fac Gar Fac Gar Fac Gar Fac Gar Fac Gar Fac Was Fac Gar Res Tes Gar Res Peak Influence 2305 | 30 254 221 299 166 . 116 384 1284 627 1381 715 94 905 476 1786 2082 2305 1210 1389 785 1638 927 2188 1160 406 246 986 607 211 737 434 Initial 1416 | . 19 . . 91 . . 44 105 625 1 672 35 15 474 56 937 1416 1209 550 728 549 859 508 1148 406 . 8 554 101 58 414 Average 486 | 12 94 52 186 30 . 107 155 670 158 631 282 46 537 212 879 1632 1894 937 1079 766 1126 867 1382 1148 184 53 665 379 79 373 223 Maximum Alert Level 5 | . 1 1 1 . . . 1 4 2 4 3 . 3 2 5 5 5 4 4 3 5 3 5 4 2 1 3 2 1 3 2 Low Security (%) 45 | 100 91 99 51 100 . 100 82 10 64 14 46 100 11 49 19 . . . . . . . . . 44 93 4 8 98 25 46 Level 1 16 | . 8 . 48 . . . 17 15 26 19 26 . 10 27 13 . . . . . . . . . 27 6 9 47 1 31 37 Level 2 11 | . . . . . . . . 29 9 20 24 . 49 23 1 . . . 6 . 5 . 10 . 27 . 40 43 . 38 15 Level 3 12 | . . . . . . . . 32 . 33 2 . 28 . 23 17 . 73 50 100 49 100 22 . . . 44 . . 4 . Level 4 8 | . . . . . . . . 12 . 11 . . . . 32 15 18 26 42 . 44 . 20 100 . . . . . . . Level 5 6 | . . . . . . . . . . . . . . . 8 66 81 . . . . . 47 . . . . . . . . High Security . | . . . . . . . . . . . . . . . . . . . . . . . . . . . . . . . . Max Security . | . . . . . . . . . . . . . . . . . . . . . . . . . . . . . . . . Squads Dispatched 60 | . 3 . 3 . . . 2 . 1 . 4 2 . 4 . 9 . 2 . 2 . 2 . . . 2 . 7 5 . 12 Investigation 6 | . 1 . . . . . . . . . 1 1 . . . 1 . . . . . . . . . . . 1 . . 1 Extermination 17 | . . . . . . . . . . . . 1 . 3 . . . 1 . . . 1 . . . 1 . 1 5 . 4 Reinforcement 25 | . 2 . 3 . . . 2 . 1 . 2 . . 1 . 3 . 1 . 1 . . . . . 1 . 4 . . 4 Assault 9 | . . . . . . . . . . . 1 . . . . 5 . . . 1 . 1 . . . . . 1 . . . Garrison 3 | . . . . . . . . . . . . . . . . . . . . . . . . . . . . . . . 3 Intercept . | . . . . . . . . . . . . . . . . . . . . . . . . . . . . . . . . Searches Triggered . | . . . . . . . . . . . . . . . . . . . . . . . . . . . . . . . . Construction Impeded 5 | . . . 1 . . . 1 . . . . . . . . 1 . . . . . . . . . . . 1 . . 1 Haulers Reinforced 2 | . . . . . . . . . . . . . . . . 1 . . . . . . . . . . . 1 . . . Active Scanning Responses . | . . . . . . . . . . . . . . . . . . . . . . . . . . . . . . . . Cargo Convoy Interrupts 1 | . . . . . . . . . . . . . . . . . . . . . . . . . . . . . . . 1 Stealth | -11 -10 -10 -9 -9 -9 -8 -8 -8 -8 -8 -8 -7 -7 -6 -6 -6 -6 -6 -6 -6 -6 -5 -5 -4 -4 -4 -4 -3 -3 -3 -2 --------- Run | Jun Mat Min Mat Min Exi Min Mat Gar Mat Gar Mat Fac Gar Fac Gar Fac Gar Fac Gar Fac Gar Fac Gar Fac Was Fac Gar Res Tes Gar Res Distress Signals 27 | . 3 . . . . . 4 . 3 . 5 . . . . 1 . . . 1 . . . . . . . 5 . . 5 Communications Jammed 178 | . . . . . . . . . . . . . . . . . . . . . . . . . . . . 49 2 . 127 Distress Signals 176 | . . . . . . . . . . . . . . . . . . . . . . . . . . . . 47 2 . 127 Times Spotted 823 | . 18 10 49 5 . 5 47 39 28 31 42 4 38 10 34 24 39 9 47 4 38 4 44 1 5 7 45 40 41 38 77 Peak Tracking Total 13 | . 3 3 5 3 . 2 6 9 8 4 7 2 10 2 10 7 5 3 10 4 6 2 4 1 1 3 8 7 5 13 12 Tactical Retreats 21 | . 1 . 1 . . . . 1 1 5 1 . 1 . . . . . 2 . 1 . . . . . . . 4 . 3 Traps | -11 -10 -10 -9 -9 -9 -8 -8 -8 -8 -8 -8 -7 -7 -6 -6 -6 -6 -6 -6 -6 -6 -5 -5 -4 -4 -4 -4 -3 -3 -3 -2 ------- Run | Jun Mat Min Mat Min Exi Min Mat Gar Mat Gar Mat Fac Gar Fac Gar Fac Gar Fac Gar Fac Gar Fac Gar Fac Was Fac Gar Res Tes Gar Res Traps Triggered 53 | . . . . . . . . 11 . 9 . . 3 . 7 1 1 . 2 . 6 . 3 1 . . 1 . 3 5 . Indirectly . | . . . . . . . . . . . . . . . . . . . . . . . . . . . . . . . . Trap Hack Attempts . | . . . . . . . . . . . . . . . . . . . . . . . . . . . . . . . . Triggered . | . . . . . . . . . . . . . . . . . . . . . . . . . . . . . . . . Disarmed . | . . . . . . . . . . . . . . . . . . . . . . . . . . . . . . . . Reprogrammed . | . . . . . . . . . . . . . . . . . . . . . . . . . . . . . . . . Reused . | . . . . . . . . . . . . . . . . . . . . . . . . . . . . . . . . Traps Extracted . | . . . . . . . . . . . . . . . . . . . . . . . . . . . . . . . . Installed . | . . . . . . . . . . . . . . . . . . . . . . . . . . . . . . . . Triggered 1 | . . 1 . . . . . . . . . . . . . . . . . . . . . . . . . . . . . Machines | -11 -10 -10 -9 -9 -9 -8 -8 -8 -8 -8 -8 -7 -7 -6 -6 -6 -6 -6 -6 -6 -6 -5 -5 -4 -4 -4 -4 -3 -3 -3 -2 ---------- Run | Jun Mat Min Mat Min Exi Min Mat Gar Mat Gar Mat Fac Gar Fac Gar Fac Gar Fac Gar Fac Gar Fac Gar Fac Was Fac Gar Res Tes Gar Res Machines Disabled 126 | . 2 1 . . . . 5 6 1 7 2 . 6 2 6 34 12 1 4 . 7 . 6 . . 2 5 1 7 8 1 Max in Single Turn 2 | . 1 1 . . . . 2 2 1 2 1 . 1 2 1 . 1 . 1 . 1 . 1 . . 1 1 1 1 2 . Garrison Access 3 | . . . . . . . . . . . . . . . . 1 . . . . . . . . . . . . . . 2 Garrison Relay 49 | . . . . . . . . 6 . 5 . . 4 . 5 . 6 . 4 . 4 . 5 . . . 5 . . 5 . Phase Generator 3 | . . . . . . . . . . 1 . . . . . . 1 . . . . . . . . . . . . 1 . Machines Repaired . | . . . . . . . . . . . . . . . . . . . . . . . . . . . . . . . . Machines Sabotaged . | . . . . . . . . . . . . . . . . . . . . . . . . . . . . . . . . Overloaded Fab Kills . | . . . . . . . . . . . . . . . . . . . . . . . . . . . . . . . . Hacking | -11 -10 -10 -9 -9 -9 -8 -8 -8 -8 -8 -8 -7 -7 -6 -6 -6 -6 -6 -6 -6 -6 -5 -5 -4 -4 -4 -4 -3 -3 -3 -2 --------- Run | Jun Mat Min Mat Min Exi Min Mat Gar Mat Gar Mat Fac Gar Fac Gar Fac Gar Fac Gar Fac Gar Fac Gar Fac Was Fac Gar Res Tes Gar Res Machines Accessed 133 | . 7 1 11 . 2 . 15 4 9 5 6 5 3 4 2 8 2 7 3 2 3 4 2 1 . 4 2 5 9 2 5 Terminals 93 | . 6 1 8 . . . 10 4 6 5 4 2 3 2 2 4 2 4 3 1 3 1 2 1 . 2 2 5 6 2 2 Fabricators 4 | . . . . . . . . . . . . 1 . . . 1 . 1 . . . . . . . . . . . . 1 Repair Stations 9 | . . . 1 . . . . . 2 . 1 1 . 1 . 1 . 1 . . . 1 . . . . . . . . . Recycling Units 6 | . 1 . 2 . . . 2 . . . 1 . . . . . . . . . . . . . . . . . . . . Scanalyzers 7 | . . . . . . . 2 . . . . . . . . 1 . . . . . 1 . . . 1 . . 2 . . Garrison Access 12 | . . . . . . . 1 . 1 . . 1 . 1 . 1 . 1 . 1 . 1 . . . 1 . . 1 . 2 Total Hacks 359 | . 24 2 31 . 2 . 59 10 31 15 13 10 9 9 6 21 3 17 7 5 7 11 5 2 . 11 5 16 14 5 9 Successful 161 | . 13 1 13 . 2 . 39 3 16 3 4 6 1 4 3 8 1 8 1 3 1 3 1 . . 7 2 8 6 . 4 Failed 197 | . 10 1 18 . . . 20 7 15 12 9 4 8 5 3 13 2 9 6 2 6 8 4 2 . 4 3 8 8 5 5 Catastrophic 42 | . 1 1 2 . . . 1 4 2 3 3 2 2 1 1 1 1 2 1 . 1 3 2 . . . . 3 3 . 2 Database Lockouts 1 | . 1 . . . . . . . . . . . . . . . . . . . . . . . . . . . . . . Manual 165 | . 16 2 17 . 1 . 36 2 15 4 7 3 . 5 3 4 . 13 . 2 . 2 . 2 . 6 3 13 6 . 3 Terminals 266 | . 23 2 24 . . . 44 10 22 15 9 5 9 4 6 7 3 13 7 3 7 2 5 2 . 6 5 16 9 5 3 Fabricators 8 | . . . . . . . . . . . . 3 . . . 3 . 1 . . . . . . . . . . . . 1 Repair Stations 23 | . . . 2 . . . . . 7 . 2 1 . 3 . 6 . 1 . . . 1 . . . . . . . . . Recycling Units 14 | . 1 . 5 . . . 6 . . . 2 . . . . . . . . . . . . . . . . . . . . Scanalyzers 23 | . . . . . . . 8 . . . . . . . . 3 . . . . . 6 . . . 3 . . 3 . . Garrison Access 23 | . . . . . . . 1 . 2 . . 1 . 2 . 2 . 2 . 2 . 2 . . . 2 . . 2 . 5 Terminal Hacks 69 | . 8 1 6 . 2 . 19 3 6 2 2 1 1 . 2 . 1 2 1 . 1 . 1 . . 1 2 5 2 . . Record 1 | . . . . . 1 . . . . . . . . . . . . . . . . . . . . . . . . . . Robot Analysis 8 | . 3 . 1 . . . 4 . . . . . . . . . . . . . . . . . . . . . . . . Prototype ID Bank 1 | . 1 . . . . . . . . . . . . . . . . . . . . . . . . . . . . . . Open Door 2 | . . . . . . . . 1 . . . . 1 . . . . . . . . . . . . . . . . . . Branch Access Points 5 | . 1 . . . . . 1 . 1 . . . . . . . . 1 . . . . . . . . . 1 . . . Emergency Access Points 6 | . . . . . . . . 1 . . . . . . 1 . 1 . 1 . 1 . . . . . 1 . . . . Terminal Index 4 | . . . . . . . 1 . 1 . . 1 . . . . . . . . . . . . . 1 . . . . . Alert Level 8 | . 1 . 1 . . . 6 . . . . . . . . . . . . . . . . . . . . . . . . Unreport Threat 9 | . . . 1 . . . 2 . 1 . 1 . . . . . . 1 . . . . . . . . . 3 . . . Locate Traps 8 | . 2 . 2 . . . 3 . 1 . . . . . . . . . . . . . . . . . . . . . . Hauler Manifests 6 | . . . 1 . . . 1 . 1 . 1 . . . . . . . . . . . . . . . . 1 1 . . Zone Layout 4 | . . 1 . . . . 1 . 1 . . . . . . . . . . . . . . . . . . . 1 . . Garrison Registry 1 | . . . . . . . . . . . . . . . . . . . . . . . . . . . 1 . . . . Patrol Navigation 3 | . . . . . . . . 1 . 1 . . . . . . . . . . . . 1 . . . . . . . . Security Stations 2 | . . . . . . . . . . 1 . . . . 1 . . . . . . . . . . . . . . . . EX-Prototype ID Bank 1 | . . . . . 1 . . . . . . . . . . . . . . . . . . . . . . . . . . Fabricator Hacks 3 | . . . . . . . . . . . . 2 . . . . . 1 . . . . . . . . . . . . . Network Status 2 | . . . . . . . . . . . . 1 . . . . . 1 . . . . . . . . . . . . . Load Schematic 1 | . . . . . . . . . . . . 1 . . . . . . . . . . . . . . . . . . . Repair Station Hacks 12 | . . . 2 . . . . . 4 . 1 . . 2 . 3 . . . . . . . . . . . . . . . Scan Component 7 | . . . 1 . . . . . 2 . 1 . . 1 . 2 . . . . . . . . . . . . . . . Repair 5 | . . . 1 . . . . . 2 . . . . 1 . 1 . . . . . . . . . . . . . . . Recycling Unit Hacks 3 | . . . 2 . . . 1 . . . . . . . . . . . . . . . . . . . . . . . . Retrieve Components 3 | . . . 2 . . . 1 . . . . . . . . . . . . . . . . . . . . . . . . Scanalyzer 11 | . . . . . . . 7 . . . . . . . . 1 . . . . . 1 . . . 2 . . . . . Insert Component 7 | . . . . . . . 4 . . . . . . . . 1 . . . . . 1 . . . 1 . . . . . Analyze 4 | . . . . . . . 3 . . . . . . . . . . . . . . . . . . 1 . . . . . Garrison Access Hacks 21 | . . . . . . . 1 . 2 . . 1 . 1 . 2 . 2 . 2 . 2 . . . 2 . . 2 . 4 Unlock Access 10 | . . . . . . . 1 . 1 . . 1 . 1 . 1 . 1 . 1 . 1 . . . 1 . . 1 . . Seal Access 2 | . . . . . . . . . . . . . . . . . . . . . . . . . . . . . . . 2 Coupler Status 9 | . . . . . . . . . 1 . . . . . . 1 . 1 . 1 . 1 . . . 1 . . 1 . 2 Unauthorized Hacks 42 | . 5 . 3 . . . 11 . 4 1 1 2 . 1 1 2 . 3 . 1 . . . . . 2 . 3 2 . . Terminals 36 | . 4 . 3 . . . 8 . 4 1 1 1 . 1 1 2 . 3 . 1 . . . . . 2 . 3 1 . . Assimilate 4 | . . . 1 . . . 1 . 1 . . . . . . . . 1 . . . . . . . . . . . . . Botnet 23 | . 3 . 2 . . . 6 . 2 1 1 1 . . 1 1 . 1 . . . . . . . 1 . 2 1 . . Operators 9 | . 1 . . . . . 1 . 1 . . . . 1 . 1 . 1 . 1 . . . . . 1 . 1 . . . Fabricators 1 | . . . . . . . . . . . . 1 . . . . . . . . . . . . . . . . . . . Recompile 1 | . . . . . . . . . . . . 1 . . . . . . . . . . . . . . . . . . . Repair Stations . | . . . . . . . . . . . . . . . . . . . . . . . . . . . . . . . . Recycling Units 4 | . 1 . . . . . 3 . . . . . . . . . . . . . . . . . . . . . . . . Reject 2 | . . . . . . . 2 . . . . . . . . . . . . . . . . . . . . . . . . Mask 1 | . . . . . . . 1 . . . . . . . . . . . . . . . . . . . . . . . . Tunnel 1 | . 1 . . . . . . . . . . . . . . . . . . . . . . . . . . . . . . Scanalyzers 1 | . . . . . . . . . . . . . . . . . . . . . . . . . . . . . 1 . . Researchers 1 | . . . . . . . . . . . . . . . . . . . . . . . . . . . . . 1 . . Garrison Access . | . . . . . . . . . . . . . . . . . . . . . . . . . . . . . . . . Data Cores Recovered 5 | . . . . . . . . . . . 2 . . . . . . . . . . . . . . 1 . 1 1 . . Used . | . . . . . . . . . . . . . . . . . . . . . . . . . . . . . . . . Hacking Detections 122 | . 5 1 10 . . . 12 4 7 5 6 5 3 3 2 8 2 7 3 2 3 4 2 1 . 4 2 5 9 2 5 Full Trace Events 20 | . 1 . . . . . . 1 . 2 . . 3 . 1 1 1 . 2 . 2 . 2 . . . 1 1 . 1 1 Feedback Events 2 | . . . . . . . . . . . . . . . . . . . . . 1 . . . . . . . . . 1 Corruption 2 | . . . . . . . . . . . . . . . . . . . . . 1 . . . . . . . . . 1 Feedback Blocked . | . . . . . . . . . . . . . . . . . . . . . . . . . . . . . . . . Robot Schematics Acquired 2 | . . . . . . . . . . . . . . . . . . . . . . . . . . . . . 2 . . Robots Built . | . . . . . . . . . . . . . . . . . . . . . . . . . . . . . . . . Authchips . | . . . . . . . . . . . . . . . . . . . . . . . . . . . . . . . . Time . | . . . . . . . . . . . . . . . . . . . . . . . . . . . . . . . . Total Robot Build Rating . | . . . . . . . . . . . . . . . . . . . . . . . . . . . . . . . . Part Schematics Acquired 4 | . . . . . . . 2 . . . . . . . . . . . . . . . . . . 1 . . 1 . . Parts Built . | . . . . . . . . . . . . . . . . . . . . . . . . . . . . . . . . Authchips . | . . . . . . . . . . . . . . . . . . . . . . . . . . . . . . . . Time . | . . . . . . . . . . . . . . . . . . . . . . . . . . . . . . . . Total Part Build Rating . | . . . . . . . . . . . . . . . . . . . . . . . . . . . . . . . . Parts Repaired 5 | . . . 1 . . . . . 2 . . . . 1 . 1 . . . . . . . . . . . . . . . Time 183 | . . . 26 . . . . . 76 . . . . 19 . 62 . . . . . . . . . . . . . . . Parts Recycled . | . . . . . . . . . . . . . . . . . . . . . . . . . . . . . . . . Recycled Matter . | . . . . . . . . . . . . . . . . . . . . . . . . . . . . . . . . Retrieved Matter . | . . . . . . . . . . . . . . . . . . . . . . . . . . . . . . . . Retrieved Components 25 | . . . 20 . . . 5 . . . . . . . . . . . . . . . . . . . . . . . . Parts Scanalyzed 5 | . . . . . . . 2 . . . . . . . . 1 . . . . . 1 . . . 1 . . . . . Part Schematics Acquired 3 | . . . . . . . 2 . . . . . . . . . . . . . . . . . . 1 . . . . . Parts Damaged . | . . . . . . . . . . . . . . . . . . . . . . . . . . . . . . . . Bothacking | -11 -10 -10 -9 -9 -9 -8 -8 -8 -8 -8 -8 -7 -7 -6 -6 -6 -6 -6 -6 -6 -6 -5 -5 -4 -4 -4 -4 -3 -3 -3 -2 ------------ Run | Jun Mat Min Mat Min Exi Min Mat Gar Mat Gar Mat Fac Gar Fac Gar Fac Gar Fac Gar Fac Gar Fac Gar Fac Was Fac Gar Res Tes Gar Res Used RIF Installer 13 | . . . . . . . . 2 . 2 . . 1 . 1 . 1 . 1 . 1 . 1 . . . 2 . . 1 . Hotswap 1 | . . . . . . . . . . 1 . . . . . . . . . . . . . . . . . . . . . Code Merge 1 | . . . . . . . . . . . . . . . . . . . . . . . . . . . . . . 1 . Command Fork 1 | . . . . . . . . . . . . . . . . . . . 1 . . . . . . . . . . . . Threat Obfuscator 2 | . . . . . . . . 1 . . . . . . . . . . . . . . . . . . 1 . . . . Robot Detection 1 | . . . . . . . . . . . . . . . . . . . . . . . 1 . . . . . . . . Watcher Feeds 1 | . . . . . . . . . . 1 . . . . . . . . . . . . . . . . . . . . . Program Shield 1 | . . . . . . . . . . . . . 1 . . . . . . . . . . . . . . . . . . Autooverride 3 | . . . . . . . . . . . . . . . 1 . 1 . . . 1 . . . . . . . . . . Crosswire 1 | . . . . . . . . . . . . . . . . . . . . . . . . . . . 1 . . . . Robots Hacked 319 | . . . . . . . . 7 8 7 12 . 13 7 10 8 21 3 26 4 15 1 23 1 11 5 16 24 17 31 49 Non-combat 38 | . . . . . . . . . 1 . . . . 2 . 3 . 1 . . . 1 . 1 1 3 . 4 4 . 17 Combat 281 | . . . . . . . . 7 7 7 12 . 13 5 10 5 21 2 26 4 15 . 23 . 10 2 16 20 13 31 32 Autooverrided 100 | . . . . . . . . . . . . . . . 2 . 4 . 9 3 7 . 11 . . 1 8 13 3 20 19 Robot Hacks Applied 250 | . . . . . . . . 7 10 7 13 . 14 9 8 12 18 6 18 3 9 1 13 1 11 5 9 13 15 14 34 parse_system 12 | . . . . . . . . . . . . . . . . 3 2 . 1 . . . . . 5 . . . 1 . . find_chute 1 | . . . . . . . . . . . . . . . . . . . . . . 1 . . . . . . . . . hold_bot 1 | . . . . . . . . . . . . . . . . . . . . . . . . . . . . . . . 1 ignore_repairs 8 | . . . . . . . . . . . . . . . . . . . . . . . . . . . . . . . 8 map_walls 3 | . . . . . . . . . . . . . . . . . . . . . . . . . . 1 . . . . 2 map_earth 1 | . . . . . . . . . . . . . . . . . . . . . . . . . . . . . . . 1 find_fabricator 5 | . . . . . . . . . . . . . . . . 2 . . . . . . . 1 . . . 1 1 . . drop_inventory 1 | . . . . . . . . . . . . . . 1 . . . . . . . . . . . . . . . . . find_recycling 1 | . . . . . . . . . . . . . . . . . . . . . . . . . . . . 1 . . . ignore_parts 1 | . . . . . . . . . . . . . . . . . . . . . . . . . . . . 1 . . . deconstruct_bot 1 | . . . . . . . . . . . . . . . . . . . . . . . . . . . . . . . 1 purge_threat 13 | . . . . . . . . . 3 . . . . 2 . 3 . 3 . . . . . . . 1 . 1 . . . block_reporting 4 | . . . . . . . . . . . . . . . . . . . . . . . . . . . . 1 1 . 2 map_route 5 | . . . . . . . . . . . . . . . . . . . . . . . . . . . . 1 1 . 3 disable_scanner 5 | . . . . . . . . . . . . . . . . . . . . . . . . . . . . . 5 . . ignore_targets 6 | . . . . . . . . . . . . . . . . . . . . . . . . . 6 . . . . . . find_shortcuts 1 | . . . . . . . . . . . . . . . . . . . . . . . . . . . . . . 1 . find_garrison 4 | . . . . . . . . . . . . . . . . 1 . 1 . 1 . . . . . 1 . . . . . reboot_propulsion 1 | . . . . . . . . . . . . . 1 . . . . . . . . . . . . . . . . . . scatter_targeting 1 | . . . . . . . . . . . . . . . . . . . . . 1 . . . . . . . . . . link_complan 1 | . . . . . . . . . . . . . . . . . . . . . . . . . . . . . 1 . . spike_heat 2 | . . . . . . . . . . . . . . . . . . . . . . . . . . . . . . 2 . amplify_resonance 23 | . . . . . . . . . . . 3 . . . . 1 2 . 4 1 3 . 2 . . . 2 . 2 . 3 disable_weapons 1 | . . . . . . . . . . . . . . . 1 . . . . . . . . . . . . . . . . reboot_system 16 | . . . . . . . . . 3 1 1 . 2 . 1 . 2 1 2 . . . 1 . . . . . . 1 1 overwrite_iff 40 | . . . . . . . . . 4 1 3 . 4 . . 1 1 . 5 . 4 . 2 . . . 1 2 1 5 6 streamctrl_high 1 | . . . . . . . . 1 . . . . . . . . . . . . . . . . . . . . . . . formatsys_low 5 | . . . . . . . . . . . . . . 1 . . . . . . . . . . . 2 . . 2 . . formatsys_high 86 | . . . . . . . . 6 . 5 6 . 7 5 6 1 11 1 6 1 1 . 8 . . . 6 5 . 5 6 Relay Couplers Released 222 | . . . . . . . . 27 . 22 . . 20 . 19 1 25 . 17 . 15 . 23 . . . 19 3 . 28 3 Machine Destruction 209 | . . . . . . . . 27 . 19 . . 17 . 19 1 25 . 17 . 15 . 23 . . . 19 . . 24 3 Programmers 13 | . . . . . . . . . . 3 . . 3 . . . . . . . . . . . . . . 3 . 4 . Attached 84 | . . . . . . . . 4 3 2 1 . 5 2 9 1 9 1 8 2 6 . 10 . . . 7 2 1 11 . Crosswired 25 | . . . . . . . . . . . . . . . . . . . . . . . . . . . 10 . . 13 2 Merged Code Value 157 | . . . . . . . . . . . . . . . . . . . . . . . . . . . . . . 135 22 Fabnet Peak Effective % . | . . . . . . . . . . . . . . . . . . . . . . . . . . . . . . . . Robots Rewired 35 | . . . . . . . . 2 . . . . 2 . 6 . 5 . 4 . 1 1 9 . . . . . 1 4 . Allies Hacked 4 | . . . . . . . . . . . . . . . . . . . . . . . . . . . 1 . 3 . . Hacks Repelled 1 | . . . . . . . . . . . . . . . . . . . . . . . . . . . . 1 . . . Allies | -11 -10 -10 -9 -9 -9 -8 -8 -8 -8 -8 -8 -7 -7 -6 -6 -6 -6 -6 -6 -6 -6 -5 -5 -4 -4 -4 -4 -3 -3 -3 -2 -------- Run | Jun Mat Min Mat Min Exi Min Mat Gar Mat Gar Mat Fac Gar Fac Gar Fac Gar Fac Gar Fac Gar Fac Gar Fac Was Fac Gar Res Tes Gar Res Total Allies 301 | . . . 1 4 . . . 9 4 6 8 . 13 6 16 2 22 2 24 3 15 1 32 . 19 4 15 21 8 34 32 Largest Group 27 | . . . 1 4 4 3 . 2 1 5 3 . 3 4 12 10 7 8 7 6 5 2 16 12 27 27 17 7 3 6 4 Highest-Rated Group 999 | . . . 10 50 50 40 . 56 16 77 61 . 96 143 633 633 368 376 347 186 213 73 564 470 999 999 635 321 177 283 272 Highest-Rated Ally 178 | . . . 10 31 16 16 . 31 16 16 29 . 39 47 119 119 99 89 89 32 99 41 49 49 50 56 58 116 153 116 178 Total Orders 295 | . . . 14 2 . . . . . 10 6 2 2 5 22 4 6 5 10 9 17 . 40 4 2 2 19 15 18 . 81 STAY 132 | . . . 8 1 . . . . . 5 3 . 1 3 12 1 4 2 5 6 8 . 22 2 . 1 9 8 7 . 24 FOLLOW 103 | . . . 2 1 . . . . . 5 3 . 1 2 10 1 2 3 5 3 9 . 18 2 2 1 10 7 3 . 13 AID 3 | . . . . . . . . . . . . . . . . . . . . . . . . . . . . . 3 . . EXPLORE 13 | . . . . . . . . . . . . . . . . . . . . . . . . . . . . . 2 . 11 RETURN 44 | . . . 4 . . . . . . . . 2 . . . 2 . . . . . . . . . . . . 3 . 33 Ally Attacks 1597 | . . . . 6 . 28 . 52 12 18 52 . 25 24 101 104 89 27 107 4 102 4 150 . 122 71 166 118 26 81 108 Total Damage 47514 | . . . . 21 . 311 . 779 197 393 700 . 435 620 3618 5868 2623 1030 2910 97 3307 73 3273 . 3782 1744 5187 3478 681 2653 3734 Kills 295 | . . . . 1 . 6 . 4 2 5 8 . 4 4 23 49 18 6 18 . 24 . 30 . 7 8 32 20 2 10 14 Allies Corrupted 13 | . . . . . . . . . . . . . . 1 1 . . 1 2 . . . . . . 1 . 2 2 1 2 Allies Melted . | . . . . . . . . . . . . . . . . . . . . . . . . . . . . . . . . Intel | -11 -10 -10 -9 -9 -9 -8 -8 -8 -8 -8 -8 -7 -7 -6 -6 -6 -6 -6 -6 -6 -6 -5 -5 -4 -4 -4 -4 -3 -3 -3 -2 ------- Run | Jun Mat Min Mat Min Exi Min Mat Gar Mat Gar Mat Fac Gar Fac Gar Fac Gar Fac Gar Fac Gar Fac Gar Fac Was Fac Gar Res Tes Gar Res Robot Analysis Total 8 | . 3 . 1 . . . 4 . . . . . . . . . . . . . . . . . . . . . . . . Derelict Logs Recovered 2 | . . 1 . 1 . . . . . . . . . . . . . . . . . . . . . . . . . . . Drone Launches 52 | . . . 4 . . . . . . . . 3 . . . 2 . . . . . . . . . . . . 6 . 37 Drone Recoveries 45 | . . . 4 . . . . . . . . 3 . . . 2 . . . . . . . . . . . . 5 . 31 Exploration | -11 -10 -10 -9 -9 -9 -8 -8 -8 -8 -8 -8 -7 -7 -6 -6 -6 -6 -6 -6 -6 -6 -5 -5 -4 -4 -4 -4 -3 -3 -3 -2 ------------- Run | Jun Mat Min Mat Min Exi Min Mat Gar Mat Gar Mat Fac Gar Fac Gar Fac Gar Fac Gar Fac Gar Fac Gar Fac Was Fac Gar Res Tes Gar Res Turns Passed 60714 | 161 1735 1116 4963 2424 1038 319 10545 2229 2292 2408 3008 593 1923 769 3098 719 2045 590 2092 368 2109 440 2594 219 1448 558 1585 1022 1901 2516 1887 Spaces Moved 23201 | 71 961 647 1674 732 321 81 3136 809 673 847 925 207 681 284 1076 362 1059 307 975 205 1000 164 1320 101 445 263 791 361 807 1111 805 Core 141 | 5 . . . . . . . . . . . . . . . . . . . . . . . . . . . . . . 136 Treads 23060 | 66 961 647 1674 732 321 81 3136 809 673 847 925 207 681 284 1076 362 1059 307 975 205 1000 164 1320 101 445 263 791 361 807 1111 669 Legs . | . . . . . . . . . . . . . . . . . . . . . . . . . . . . . . . . Wheels . | . . . . . . . . . . . . . . . . . . . . . . . . . . . . . . . . Hover . | . . . . . . . . . . . . . . . . . . . . . . . . . . . . . . . . Flight . | . . . . . . . . . . . . . . . . . . . . . . . . . . . . . . . . Fastest Speed 50 | 50 160 160 160 320 320 320 228 225 232 228 228 243 245 242 160 160 160 160 160 160 152 160 160 160 160 160 160 145 145 152 50 Average Speed 215 | 152 160 160 255 320 320 320 304 226 274 249 258 246 245 243 239 160 160 160 160 160 160 160 160 202 160 188 165 155 160 173 139 Slowest Speed 1750 | 160 160 160 320 320 320 320 320 310 316 308 317 247 247 245 245 160 160 160 160 160 240 160 160 240 160 240 240 225 232 305 1750 Overloaded Moves . | . . . . . . . . . . . . . . . . . . . . . . . . . . . . . . . . Propulsion Burnouts . | . . . . . . . . . . . . . . . . . . . . . . . . . . . . . . . . Robots Hopped 3 | . . . . . . . . . . . . . . . . . . . . . . . 3 . . . . . . . . Cave-ins Triggered 2 | . . . . . . . . . . . . . . . 1 . . . . . . . . . . . . . . 1 . Exploration Rate (%) 61 | 6 99 99 99 98 69 19 87 92 60 95 58 9 72 7 94 17 94 12 94 11 93 13 91 8 95 12 93 32 95 99 55 Regions Visited 31 Branch Regions 5 Pre-discovered Areas 2 | . 1 . . . 1 . . . . . . . . . . . . . . . . . . . . . . . . . . Known Exits Taken 15 | . 1 . 1 . . 1 1 . 1 . 1 1 . 1 . 1 . 1 . 1 . 1 . . . 1 . 1 1 . . Unknown Exits Taken 4 | 1 . 1 . 1 1 . . . . . . . . . . . . . . . . . . . . . . . . . . Scrap Searched 3 | . . 1 . 2 . . . . . . . . . . . . . . . . . . . . . . . . . . . Spaces Dug 464 | . 9 . 5 1 . . 58 30 1 11 . 1 61 1 31 1 7 16 45 . 38 6 23 . . 7 22 22 8 25 35 Terrain Destroyed 1097 | . 9 35 20 6 . 15 124 63 38 110 25 1 91 1 49 4 27 19 56 3 50 6 34 . . 8 30 54 31 110 78 Melee 194 | . . . 5 . . . . . . . . 1 . 1 31 1 4 15 36 . 32 6 18 . . 2 5 9 7 18 3 Projectile 438 | . . . 1 6 . 15 51 24 11 16 13 . . . 16 3 23 4 20 3 18 . 16 . . 6 25 45 24 23 75 AOE 463 | . 9 35 14 . . . 73 39 27 94 12 . 91 . . . . . . . . . . . . . . . . 69 . Terrain Rammed . | . . . . . . . . . . . . . . . . . . . . . . . . . . . . . . . . Walls Destroyed . | . . . . . . . . . . . . . . . . . . . . . . . . . . . . . . . . Machines Disabled . | . . . . . . . . . . . . . . . . . . . . . . . . . . . . . . . . Actions | -11 -10 -10 -9 -9 -9 -8 -8 -8 -8 -8 -8 -7 -7 -6 -6 -6 -6 -6 -6 -6 -6 -5 -5 -4 -4 -4 -4 -3 -3 -3 -2 --------- Run | Jun Mat Min Mat Min Exi Min Mat Gar Mat Gar Mat Fac Gar Fac Gar Fac Gar Fac Gar Fac Gar Fac Gar Fac Was Fac Gar Res Tes Gar Res Total 31112 | 98 1084 703 2130 804 337 113 3941 1101 1049 1058 1441 264 841 341 1404 478 1283 365 1287 237 1325 322 1636 115 1178 301 983 691 1255 1573 1374 Wait 3666 | 5 60 20 195 53 1 13 487 94 245 53 370 11 3 8 11 56 55 9 60 22 95 139 103 . 712 9 53 163 120 160 281 Move 23167 | 70 960 646 1673 731 320 80 3135 808 672 846 924 207 680 283 1074 361 1058 307 974 204 999 163 1313 101 444 262 790 360 807 1110 805 Hop 3 | . . . . . . . . . . . . . . . . . . . . . . . 3 . . . . . . . . Pick Up 339 | 3 10 4 45 1 4 . 41 17 10 14 13 4 17 6 23 4 9 1 13 . 17 . 15 2 . . 15 3 18 25 5 Fast Attach 264 | 8 . 2 12 3 1 . 25 6 10 9 7 6 4 4 18 6 12 3 11 . 14 2 13 3 4 . 5 8 31 23 14 Attach 245 | . . 3 21 2 3 . 26 24 16 16 21 4 8 5 11 4 2 . 8 . 8 . 5 1 . . 4 2 24 19 8 Detach 175 | 1 . . 11 2 1 . 21 15 12 11 15 2 2 3 14 3 1 1 5 . 4 . 9 1 . . 3 2 19 15 2 Swap 446 | . 5 7 13 . . . 14 15 5 6 9 7 26 4 33 8 28 6 32 3 32 5 15 3 . 8 19 28 34 23 58 Drop 414 | . 3 3 33 4 7 . 55 12 18 20 4 11 9 3 36 6 13 3 18 . 26 . 17 3 4 . 14 9 39 35 9 Fire 1697 | 11 36 14 110 7 . 20 126 68 26 61 59 8 48 19 95 23 89 16 83 8 76 7 88 1 14 16 73 94 133 101 167 Melee 507 | . . . 7 . . . 7 15 31 11 5 1 19 2 53 3 14 17 83 . 54 6 53 . . 5 7 15 28 54 17 Ram 1 | . . . . . . . . . . . . . . . . . . . . . . . . . . . . . . . 1 Kick . | . . . . . . . . . . . . . . . . . . . . . . . . . . . . . . . . Crush 75 | . 10 4 10 1 . . 4 . 4 . 14 3 . 4 . 3 . 2 . . . . . . . . . 7 2 . 7 Escape Stasis 60 | . . . . . . . . 16 . 11 . . 6 . 16 1 2 . . . . . 2 . . . . . . 6 . Rewire 53 | . . . . . . . . 11 . . . . 19 . 20 . . . . . . . . . . 1 . . . 2 . Trap . | . . . . . . . . . . . . . . . . . . . . . . . . . . . . . . . . Miscellaneous . | . . . . . . . . . . . . . . . . . . . . . . . . . . . . . . . . Route ------- -11/Junkyard -10/Materials (discovered 4 exits: *Mat x3 / *Min) -10/Mines (discovered 2 exits: *Mat x2) -9/Materials (discovered 5 exits: *Mat x3 / *Min x2) -9/Mines (discovered 3 exits: *Mat x2 / *Exi) -9/Exiles (discovered 2 exits: [*Min x2]) -8/Mines -8/Materials (discovered 3 exits: *Fac x2 / Gar) -8/Garrison (discovered 4 exits: *Fac x3 / *Mat) -8/Materials (discovered 3 exits: *Fac x2 / Gar) -8/Garrison (discovered 4 exits: *Fac x3 / *Mat) -8/Materials -7/Factory -7/Garrison (discovered 3 exits: *Fac x3) -6/Factory -6/Garrison (discovered 3 exits: *Fac x3) -6/Factory -6/Garrison (discovered 4 exits: *Fac x3 / *Fac) -6/Factory (discovered 5 exits: Low x2 / Ext x2 / Gar) -6/Garrison (discovered 4 exits: *Fac x3 / *Fac) -6/Factory (discovered 2 exits: *Fac / Gar) -6/Garrison (discovered 3 exits: *Fac x3) -5/Factory -5/Garrison (discovered 3 exits: *Fac x3) -4/Factory -4/Waste -4/Factory -4/Garrison (discovered 3 exits: *Res x3) -3/Research (discovered 3 exits: *Res / *Tes x2) -3/Testing (discovered 2 exits: *Res / Gar) -3/Garrison (discovered 3 exits: *Res x3) -2/Research (discovered 2 exits: *Acc x2) History --------- Turn | Location | Event 37 | -11/Junkyard | Discovered new exit (range 15) 162 | -11/Junkyard | Entered Materials 306 | -10/Materials | Build established: Mutant 662 | -10/Materials | Discovered new exit (range 16) 679 | -10/Materials | Identified exit to Mines 679 | -10/Materials | Central database locked down 1110 | -10/Materials | Discovered new exit (range 3) 1339 | -10/Materials | Discovered new exit (range 4) 1897 | -10/Materials | Entered Mines 2176 | -10/Mines | Discovered new exit (range 15) 2237 | -10/Mines | Received a Rocket Launcher from a helpful Derelict 2310 | -10/Mines | Found the Drone Emporium 2328 | -10/Mines | Found Prototype Device 2328 | -10/Mines | Identified Sensor Drone Bay 2480 | -10/Mines | Learned Materials non-interactive machine intel 2698 | -10/Mines | Discovered new exit (range 6) 3013 | -10/Mines | Entered Materials 3013 | -9/Materials | Evolved 2 slots: Propulsion x1, Utility x1 3014 | -9/Materials | Loaded intel: 34 non-interactive machine locations 3460 | -9/Materials | Lost 3 parts (2n1w) 4242 | -9/Materials | Discovered new exit (range 15) 4304 | -9/Materials | Build established: Scavenger-Mutant 4627 | -9/Materials | Discovered new exit (range 11) 5364 | -9/Materials | Repaired Lgt. Treads 5492 | -9/Materials | Core integrity fell below 50% 5890 | -9/Materials | Discovered new exit (range 15) 5957 | -9/Materials | Lost 4 parts (1n1u2w) 6100 | -9/Materials | Discovered new exit (range 6) 6591 | -9/Materials | Identified exit to Mines 6737 | -9/Materials | Identified exit to Materials 7056 | -9/Materials | Discovered exit to Materials (range 16) 7547 | -9/Materials | Build established: Hauler-Mutant 7976 | -9/Materials | Entered Mines 7976 | -9/Mines | Accompanied by 1 ally 8008 | -9/Mines | Received a Mining Laser from a helpful Derelict 8048 | -9/Mines | Assembled infested the area 8567 | -9/Mines | Discovered exit to Materials (range 10) 8861 | -9/Mines | Discovered new exit (range 5) 9370 | -9/Mines | Found a hidden stash of uninstalled traps 9405 | -9/Mines | Discovered exit to Materials (range 5) 9421 | -9/Mines | Assisted by bots powering up and referring to "LRC-V3" 10400 | -9/Mines | Entered Exiles 10400 | -9/Exiles | Accompanied by 4 allies 10452 | -9/Exiles | Discovered new exit (range 15) 10491 | -9/Exiles | Met 8R-AWN 10536 | -9/Exiles | Met EX-HEX 10692 | -9/Exiles | Met EX-DEC 10744 | -9/Exiles | Learned location of Zion (-7) 10977 | -9/Exiles | Met EX-BIN 11016 | -9/Exiles | Aligned with FarCom system 11019 | -9/Exiles | Given EX-Vault access code 11092 | -9/Exiles | Opened EX-Vault 11122 | -9/Exiles | Found Firepult 11131 | -9/Exiles | Found Supersonic Drone Bay 11192 | -9/Exiles | Warned to stay clear of 0b10 Research branches 11395 | -9/Exiles | Discovered new exit (range 14) 11438 | -9/Exiles | Stole two prototypes: Supersonic Drone Bay, Firepult 11438 | -9/Exiles | Entered Mines 11438 | -8/Mines | Accompanied by 3 allies 11511 | -8/Mines | Core integrity fell below 20% 11719 | -8/Mines | Discovered exit to Materials (range 2) 11757 | -8/Mines | Entered Materials 11757 | -8/Materials | Evolved 2 slots: Propulsion x1, Utility x1 11758 | -8/Materials | Identified exit to Factory 11998 | -8/Materials | Destroyed 8 combat bots 14300 | -8/Materials | Lost 3 parts (2n1w) 16809 | -8/Materials | Discovered exit to Factory (range 16) 18965 | -8/Materials | Identified exit to Garrison 22302 | -8/Materials | Entered Garrison 22382 | -8/Garrison | Installed Relay Interface Framework 22524 | -8/Garrison | Triggered checkpoint 22610 | -8/Garrison | Garrison Relay disabled 22870 | -8/Garrison | Triggered checkpoint 22875 | -8/Garrison | Triggered checkpoint 22887 | -8/Garrison | Core integrity fell below 50% 22926 | -8/Garrison | Lost 4 parts (1p2n1u) 23033 | -8/Garrison | Garrison Relay disabled 23070 | -8/Garrison | Triggered checkpoint 23092 | -8/Garrison | Discovered exit to Factory (range 11) 23113 | -8/Garrison | Expanded RIF knowledge: Threat Obfuscation 23424 | -8/Garrison | Triggered checkpoint 23468 | -8/Garrison | Triggered checkpoint 23654 | -8/Garrison | Triggered checkpoint 23682 | -8/Garrison | Garrison Relay disabled 23736 | -8/Garrison | Discovered exit to Factory (range 10) 24033 | -8/Garrison | Discovered exit to Factory (range 8) 24066 | -8/Garrison | Triggered checkpoint 24069 | -8/Garrison | Discovered new exit (range 13) 24212 | -8/Garrison | Triggered checkpoint 24259 | -8/Garrison | Garrison Relay disabled 24259 | -8/Garrison | Garrison Relay disabled 24309 | -8/Garrison | Garrison Relay disabled 24531 | -8/Garrison | Entered Materials 24531 | -8/Materials | Accompanied by 1 ally 24606 | -8/Materials | Repaired Adv. Treads 25156 | -8/Materials | Discovered exit to Factory (range 10) 25896 | -8/Materials | Discovered exit to Factory (range 9) 26126 | -8/Materials | Identified exit to Garrison 26334 | -8/Materials | Repaired Hvy. Assault Cannon 26823 | -8/Materials | Entered Garrison 26925 | -8/Garrison | Phase Generator disabled 27028 | -8/Garrison | Triggered checkpoint 27238 | -8/Garrison | Expanded RIF knowledge: Hotswap 27469 | -8/Garrison | Core integrity fell below 20% 27691 | -8/Garrison | Discovered exit to Factory (range 10) 27716 | -8/Garrison | Triggered checkpoint 27734 | -8/Garrison | Discovered new exit (range 6) 27824 | -8/Garrison | Triggered checkpoint 27890 | -8/Garrison | Garrison Relay disabled 27892 | -8/Garrison | Garrison Relay disabled 28038 | -8/Garrison | Triggered checkpoint 28128 | -8/Garrison | Triggered checkpoint 28234 | -8/Garrison | Triggered checkpoint 28240 | -8/Garrison | Build established: Bothacker-Mutant 28273 | -8/Garrison | Learned Factory security intel 28282 | -8/Garrison | Garrison Relay disabled 28364 | -8/Garrison | Discovered exit to Factory (range 12) 28643 | -8/Garrison | Expanded RIF knowledge: Watcher Feeds 28891 | -8/Garrison | Discovered exit to Factory (range 10) 28930 | -8/Garrison | Triggered checkpoint 28944 | -8/Garrison | Garrison Relay disabled 29231 | -8/Garrison | Entered Materials 29231 | -8/Materials | Accompanied by 2 allies 29631 | -8/Materials | First assault squad dispatched 29669 | -8/Materials | Lost 3 parts (2n1w) 29935 | -8/Materials | Build established: Hauler-Mutant 30507 | -8/Materials | Discovered exit to Factory (range 15) 32239 | -8/Materials | Entered Factory 32239 | -7/Factory | Evolved 2 slots: Utility x2 32241 | -7/Factory | FarCom data flow suspended 32534 | -7/Factory | Build established: Mutant 32832 | -7/Factory | Identified exit to Garrison 32832 | -7/Factory | Entered Garrison 32864 | -7/Garrison | Triggered checkpoint 32899 | -7/Garrison | Garrison Relay disabled 33057 | -7/Garrison | Triggered checkpoint 33090 | -7/Garrison | Triggered checkpoint 33096 | -7/Garrison | Destroyed 11 combat bots 33210 | -7/Garrison | Triggered checkpoint 33410 | -7/Garrison | Triggered checkpoint 33446 | -7/Garrison | Garrison Relay disabled 33510 | -7/Garrison | Discovered new exit (range 10) 33712 | -7/Garrison | Triggered checkpoint 33744 | -7/Garrison | Build established: Botlord-Mutant 33768 | -7/Garrison | Triggered checkpoint 33814 | -7/Garrison | Garrison Relay disabled 33864 | -7/Garrison | Expanded RIF knowledge: Program Shield 33945 | -7/Garrison | Discovered new exit (range 12) 34116 | -7/Garrison | Triggered checkpoint 34182 | -7/Garrison | Garrison Relay disabled 34335 | -7/Garrison | Discovered new exit (range 14) 34755 | -7/Garrison | Entered Factory 34755 | -6/Factory | Accompanied by 3 allies 34755 | -6/Factory | Evolved 2 slots: Utility x1, Weapon x1 34788 | -6/Factory | Identified exit to Garrison 35088 | -6/Factory | Repaired Arm. Treads 35524 | -6/Factory | Entered Garrison 35524 | -6/Garrison | Accompanied by 3 allies 35593 | -6/Garrison | Expanded RIF knowledge: Autooverride 35757 | -6/Garrison | Learned Factory security intel 35764 | -6/Garrison | Triggered checkpoint 35900 | -6/Garrison | Triggered checkpoint 36030 | -6/Garrison | Triggered checkpoint 36124 | -6/Garrison | Triggered checkpoint 36138 | -6/Garrison | Garrison Relay disabled 36297 | -6/Garrison | Found embedded Infiltrators 36431 | -6/Garrison | Garrison Relay disabled 36562 | -6/Garrison | Triggered checkpoint 36563 | -6/Garrison | Triggered checkpoint 36606 | -6/Garrison | Triggered checkpoint 36680 | -6/Garrison | Triggered checkpoint 36774 | -6/Garrison | Garrison Relay disabled 36825 | -6/Garrison | Spotted B-75 Beast 36837 | -6/Garrison | Allies destroyed B-75 Beast 36925 | -6/Garrison | Discovered new exit (range 11) 37132 | -6/Garrison | Found Relay Coupler [Proto] 37135 | -6/Garrison | Found Relay Coupler [Proto] 37139 | -6/Garrison | Found Relay Coupler [Proto] 37143 | -6/Garrison | Found Relay Coupler [Proto] 37356 | -6/Garrison | Garrison Relay disabled 37380 | -6/Garrison | Triggered checkpoint 37462 | -6/Garrison | Discovered new exit (range 3) 37513 | -6/Garrison | Rewired Executioner 37514 | -6/Garrison | Rewired Executioner 37747 | -6/Garrison | Discovered new exit (range 10) 37810 | -6/Garrison | Triggered checkpoint 37829 | -6/Garrison | Garrison Relay disabled 38569 | -6/Garrison | Crushed by falling debris 38622 | -6/Garrison | Entered Factory 38622 | -6/Factory | Accompanied by 9 allies 38751 | -6/Factory | Garrison activated, responded to threat 38972 | -6/Factory | First assault squad dispatched 39024 | -6/Factory | Repaired Imp. Heavy Treads 39091 | -6/Factory | Found Prototype Device 39091 | -6/Factory | Identified Adv. Kinecellerator 39228 | -6/Factory | Allies destroyed Executioner 39239 | -6/Factory | Found Exp. Core Analyzer 39312 | -6/Factory | Identified exit to Garrison 39341 | -6/Factory | Entered Garrison 39371 | -6/Garrison | Expanded RIF knowledge: Autooverride 39420 | -6/Garrison | Triggered checkpoint 39438 | -6/Garrison | Triggered checkpoint 39482 | -6/Garrison | Garrison Relay disabled 39485 | -6/Garrison | Heavy support dispatched to Factory 39639 | -6/Garrison | Spotted B-75 Beast 39659 | -6/Garrison | Allies destroyed B-75 Beast 39674 | -6/Garrison | Triggered checkpoint 39677 | -6/Garrison | Triggered checkpoint 39723 | -6/Garrison | Triggered checkpoint 39768 | -6/Garrison | Heavy support dispatched to Factory 39782 | -6/Garrison | Triggered checkpoint 39801 | -6/Garrison | Garrison Relay disabled 39969 | -6/Garrison | Discovered new exit (range 12) 40004 | -6/Garrison | Triggered checkpoint 40023 | -6/Garrison | Garrison Relay disabled 40167 | -6/Garrison | H-XX Assembler disabled 40437 | -6/Garrison | Phase Generator disabled 40529 | -6/Garrison | Rewired Striker 40620 | -6/Garrison | Triggered checkpoint 40639 | -6/Garrison | Garrison Relay disabled 40695 | -6/Garrison | Found embedded Infiltrators 40703 | -6/Garrison | Discovered new exit (range 10) 40714 | -6/Garrison | Triggered checkpoint 40738 | -6/Garrison | Discovered new exit (range 3) 40880 | -6/Garrison | Triggered checkpoint 40887 | -6/Garrison | Discovered new exit (range 13) 40946 | -6/Garrison | Triggered checkpoint 40990 | -6/Garrison | Garrison Relay disabled 41028 | -6/Garrison | Garrison Relay disabled 41386 | -6/Garrison | Entered Factory 41386 | -6/Factory | Accompanied by 7 allies 41440 | -6/Factory | Identified exit to Lower Caves 41440 | -6/Factory | Identified exit to Extension 41976 | -6/Factory | Identified exit to Garrison 41976 | -6/Factory | Entered Garrison 41976 | -6/Garrison | Accompanied by 7 allies 42034 | -6/Garrison | Triggered checkpoint 42181 | -6/Garrison | Garrison Relay disabled 42338 | -6/Garrison | Triggered checkpoint 42346 | -6/Garrison | Triggered checkpoint 42350 | -6/Garrison | Triggered checkpoint 42443 | -6/Garrison | Discovered new exit (range 12) 42526 | -6/Garrison | Garrison Relay disabled 42718 | -6/Garrison | Discovered new exit (range 8) 42786 | -6/Garrison | Garrison Relay disabled 42800 | -6/Garrison | Triggered checkpoint 43047 | -6/Garrison | Expanded RIF knowledge: Command Fork 43050 | -6/Garrison | Triggered checkpoint 43112 | -6/Garrison | Discovered new exit (range 14) 43126 | -6/Garrison | Discovered new exit (range 5) 43232 | -6/Garrison | Triggered checkpoint 43250 | -6/Garrison | Garrison Relay disabled 44068 | -6/Garrison | Entered Factory 44068 | -6/Factory | Accompanied by 4 allies 44084 | -6/Factory | Discovered new exit (range 30) 44319 | -6/Factory | Identified exit to Garrison 44418 | -6/Factory | First assault squad dispatched 44436 | -6/Factory | Entered Garrison 44436 | -6/Garrison | Accompanied by 4 allies 44451 | -6/Garrison | Expanded RIF knowledge: Autooverride 44555 | -6/Garrison | Triggered checkpoint 44574 | -6/Garrison | Garrison Relay disabled 44681 | -6/Garrison | Spotted B-75 Beast 44689 | -6/Garrison | Triggered checkpoint 44766 | -6/Garrison | Destroyed B-75 Beast 44846 | -6/Garrison | Discovered new exit (range 10) 44934 | -6/Garrison | Triggered checkpoint 44952 | -6/Garrison | Garrison Relay disabled 45041 | -6/Garrison | Rescued a captive Derelict 45041 | -6/Garrison | Rescued a captive Derelict 45138 | -6/Garrison | Triggered checkpoint 45142 | -6/Garrison | Triggered checkpoint 45270 | -6/Garrison | Triggered checkpoint 45271 | -6/Garrison | Spotted Striker 45277 | -6/Garrison | Destroyed Striker 45298 | -6/Garrison | Rewired Striker 45322 | -6/Garrison | Garrison Relay disabled 45373 | -6/Garrison | Discovered new exit (range 7) 45505 | -6/Garrison | Spotted B-75 Beast 45509 | -6/Garrison | Allies destroyed B-75 Beast 45656 | -6/Garrison | Triggered checkpoint 45695 | -6/Garrison | Garrison Relay disabled 45771 | -6/Garrison | Discovered new exit (range 12) 46545 | -6/Garrison | Entered Factory 46545 | -5/Factory | Accompanied by 1 ally 46545 | -5/Factory | Evolved 2 slots: Utility x2 46800 | -5/Factory | Identified exit to Garrison 46823 | -5/Factory | P-70 Sage assimilated allied Guardian 5m 46845 | -5/Factory | First assault squad dispatched 46985 | -5/Factory | Entered Garrison 46985 | -5/Garrison | Accompanied by 1 ally 46994 | -5/Garrison | Triggered checkpoint 47036 | -5/Garrison | Triggered checkpoint 47089 | -5/Garrison | Garrison Relay disabled 47210 | -5/Garrison | Triggered checkpoint 47257 | -5/Garrison | Garrison Relay disabled 47518 | -5/Garrison | Expanded RIF knowledge: Robot Detection 47686 | -5/Garrison | Triggered checkpoint 47688 | -5/Garrison | Triggered checkpoint 47719 | -5/Garrison | Triggered checkpoint 47848 | -5/Garrison | Triggered checkpoint 47860 | -5/Garrison | Garrison Relay disabled 47936 | -5/Garrison | Discovered new exit (range 14) 47940 | -5/Garrison | Triggered checkpoint 48193 | -5/Garrison | Discovered new exit (range 14) 48194 | -5/Garrison | Triggered checkpoint 48299 | -5/Garrison | Garrison Relay disabled 48308 | -5/Garrison | Triggered checkpoint 48515 | -5/Garrison | Triggered checkpoint 48621 | -5/Garrison | Discovered new exit (range 12) 48723 | -5/Garrison | Garrison Relay disabled 49579 | -5/Garrison | Entered Factory 49579 | -4/Factory | Accompanied by 12 allies 49579 | -4/Factory | Evolved 2 slots: Power x1, Utility x1 49798 | -4/Factory | Sucked down chute 49798 | -4/Factory | Entered Waste 49805 | -4/Waste | Found Unknown Device 49805 | -4/Waste | Identified Adv. Force Booster 49825 | -4/Waste | Spotted C-40 Crusher 49855 | -4/Waste | Spotted C-40 Crusher 49891 | -4/Waste | Spotted C-40 Crusher 49902 | -4/Waste | Allies destroyed C-40 Crusher 49935 | -4/Waste | 9 allies followed down the chute 49976 | -4/Waste | Spotted C-40 Crusher 50006 | -4/Waste | Spotted C-40 Crusher 50021 | -4/Waste | Spotted C-40 Crusher 50061 | -4/Waste | Allies destroyed C-40 Crusher 50080 | -4/Waste | Warlord forces began an assault 50134 | -4/Waste | Discovered new exit (range 12) 51246 | -4/Waste | Entered Factory 51246 | -4/Factory | Accompanied by 27 allies 51768 | -4/Factory | Identified exit to Garrison 51804 | -4/Factory | Entered Garrison 51804 | -4/Garrison | Accompanied by 17 allies 51858 | -4/Garrison | Triggered checkpoint 51887 | -4/Garrison | Garrison Relay disabled 51991 | -4/Garrison | Spotted B-86 Titan 52005 | -4/Garrison | Triggered checkpoint 52020 | -4/Garrison | Triggered checkpoint 52024 | -4/Garrison | Triggered checkpoint 52027 | -4/Garrison | Allies destroyed B-86 Titan 52173 | -4/Garrison | Spotted B-86 Titan 52173 | -4/Garrison | Spotted B-86 Titan 52244 | -4/Garrison | Discovered new exit (range 22) 52262 | -4/Garrison | Triggered checkpoint 52275 | -4/Garrison | Triggered checkpoint 52415 | -4/Garrison | Expanded RIF knowledge: Crosswire 52444 | -4/Garrison | Garrison Relay disabled 52468 | -4/Garrison | Garrison Relay disabled 52606 | -4/Garrison | Discovered new exit (range 10) 52660 | -4/Garrison | Triggered checkpoint 52733 | -4/Garrison | Garrison Relay disabled 52752 | -4/Garrison | Discovered new exit (range 44) 52752 | -4/Garrison | Discovered new exit (range 25) 52752 | -4/Garrison | Discovered new exit (range 70) 52880 | -4/Garrison | Triggered checkpoint 52886 | -4/Garrison | Garrison Relay disabled 53079 | -4/Garrison | Expanded RIF knowledge: Threat Obfuscation 53389 | -4/Garrison | Entered Research 53389 | -3/Research | Accompanied by 4 allies 53389 | -3/Research | Evolved 2 slots: Utility x2 53446 | -3/Research | Identified exit to Testing 53639 | -3/Research | First assault squad dispatched 54100 | -3/Research | Discovered new exit (range 22) 54262 | -3/Research | Found Prototype Launcher 54378 | -3/Research | Spotted B-86 Titan 54387 | -3/Research | Spotted B-86 Titan 54411 | -3/Research | Entered Testing 54411 | -3/Testing | Accompanied by 1 ally 54545 | -3/Testing | System corruption reached 10% 54662 | -3/Testing | Identified Tactical Quantum Warhead 54751 | -3/Testing | Found Prototype Energy Cannon 54751 | -3/Testing | Identified Cld. Nova Cannon 55193 | -3/Testing | Spotted PP-AJ4GOMGVSX 55226 | -3/Testing | System corruption reached 30% 55277 | -3/Testing | Destroyed PP-AJ4GOMGVSX 55293 | -3/Testing | Lost 7 parts (2p1n2u2w) 55440 | -3/Testing | Found Prototype Device 55440 | -3/Testing | Identified Exp. Focal Shield 55505 | -3/Testing | Found Prototype Processor 55505 | -3/Testing | Identified Exp. Target Analyzer 55647 | -3/Testing | Found Prototype Slashing Weapon 55647 | -3/Testing | Identified Nanosword 55680 | -3/Testing | P-80 Master assimilated allied Artificer 8a 55696 | -3/Testing | Discovered new exit (range 14) 56017 | -3/Testing | Found Prototype Energy Cannon 56017 | -3/Testing | Identified Disintegrator 56050 | -3/Testing | Spotted PH-VH7HEKEJ0M 56057 | -3/Testing | Rewired PH-VH7HEKEJ0M 56213 | -3/Testing | Found Corrupted Zero-point Reactor 56312 | -3/Testing | Identified exit to Garrison 56312 | -3/Testing | Entered Garrison 56360 | -3/Garrison | Triggered checkpoint 56415 | -3/Garrison | Garrison Relay disabled 56555 | -3/Garrison | Rescued a captive Derelict 56686 | -3/Garrison | Triggered checkpoint 56687 | -3/Garrison | Triggered checkpoint 56743 | -3/Garrison | Spotted B-86 Titan 57083 | -3/Garrison | Phase Generator disabled 57096 | -3/Garrison | Discovered new exit (range 11) 57110 | -3/Garrison | Crushed by falling debris 57393 | -3/Garrison | Spotted B-86 Titan 57531 | -3/Garrison | Garrison Relay disabled 57676 | -3/Garrison | Garrison Relay disabled 57701 | -3/Garrison | Discovered new exit (range 8) 57780 | -3/Garrison | Triggered checkpoint 57850 | -3/Garrison | Expanded RIF knowledge: Code Merge 57866 | -3/Garrison | Triggered checkpoint 57890 | -3/Garrison | Garrison Relay disabled 57917 | -3/Garrison | Garrison Relay disabled 58007 | -3/Garrison | Discovered new exit (range 12) 58828 | -3/Garrison | Entered Research 58828 | -2/Research | Evolved 2 slots: Propulsion x2 59121 | -2/Research | Found Quantum Capacitor 59889 | -2/Research | Spotted B-90 Cyclops 60014 | -2/Research | Discovered new exit (range 41) 60106 | -2/Research | Discovered new exit (range 53) 60189 | -2/Research | Identified exit to Access 60463 | -2/Research | Cargo convoy interrupted 60463 | -2/Research | Spotted Striker 60483 | -2/Research | System corruption reached 10% 60591 | -2/Research | Core integrity fell below 50% 60602 | -2/Research | Released all parts (8) 60622 | -2/Research | Released all parts (4) 60623 | -2/Research | System corruption reached 30% 60633 | -2/Research | Lost 31 parts (4p3n17u7w) 60644 | -2/Research | Core integrity fell below 20% 60713 | -2/Research | Spotted B-90 Cyclops 60715 | -2/Research | Destroyed by H-88 Terminator with KE Penetrator Last Messages --------------- 60671_ Acquired Unknown Device. 60671_ Identified Adv. Coolant Injector. 60674_ Dropped Adv. Coolant Injector. 60682_ System corrupted: Heat flow error (+114). 60683_ Dropped Disintegrator. 60684_ Acquired Biometal Heavy Treads. 60686_ Sneak attack on T-07 Excavator. 60686_ T-07 Excavator suffers critical hit (Impale). 60686_ T-07 Excavator destroyed. 60690_ Acquired 23 matter. 60698_ Sneak attack on K-01 Serf. 60698_ Destroyed Wheel. 60699_ System corrupted: Component data lost. 60700_ K-01 Serf destroyed. 60703_ Acquired 3 matter. 60712_ Slug penetrates Wall. 60712_ Slug penetrates Door. 60713_ Slug penetrates Wall. 60714_ System corrupted: Matter fused (-8). 60715_ Penetrated by Slug. Map ----- +----------------------------------------------------+ | ?????????????????????????????????????????????????? | | ?????????????????????????????????????????????????? | | ?????????????????????????????????????????????????? | | ?????????????????????????????????????????????????? | | ?????????????????????????????????????????????????? | | ?????????????????????????????????????????????????? | | ?????????????????????????????????????????????????? | | ?????????????????????????????????????????????????? | | ?????????????????????????????????????????????????? | | ?????????????????????????????????????????????????? | | ?????????????????????????????????????????????????? | | ?????????????????????????????????????????????????? | | ?????????????????????????????????????????????????? | | ?????????????????????????????????????????????????? | | ?????????????????????????????????????????????????? | | ?????????????????#???????###?????????????????????? | | ?????????????????# ????? #?????????????????????? | | #+####???????????# #?????????????????????? | | #???????????# """" #?????????????????????? | | #???????????# """" #?????????????????????? | | +???????????# """" #?????????????????????? | | "" #???????????# """" #?????????????????????? | | "" #???????????? !??????????????????????? | | "" #?????????????? ????????????????????????? | | #????????########;######+############# ?????? | | #????????# @ ?????? | | #????????# ????? | | +????????# ????? | | #????????# k ????? | | # #????????# h ;########## ##########????????? | | # #????????# #?????????# #?????????????????? | | # ##########h #?????????# #?????????????????? | | BB #?????????# #?????????????????? | | B #?????????# #?????????????????? | | #?????????# #?????????????????? | | #?????????# #?????????????????? | | ##+##### ###+####?????????# #?????????????????? | | ! ## #????????????????# #?????????????????? | | ## #????????????????# #?????????????????? | | ## #????????????????#*#?????????????????? | | """ ## #????????????????#%#?????????????????? | | """ ## #????????????#####/#####?????????????? | | """ ## #????????????# #?????????????? | | ## #????????????# #?????????????? | | ## #????????????# #?????????????? | | """ ## #????????????# """ #?????????????? | | """ ## #????????????# """ #?????????????? | | """ + #????????????# """ #?????????????? | | ## #????????????# #?????????????? | | ## #????????????# = #??? ##???????? | +----------------------------------------------------+ Best States ------------- Heat Dissipation 125 Coolant Potential 65 Energy Generation 49 Energy Capacity 1340 Matter Stores 500 Matter Capacity 550 Sight Range 23 Terrain Scan Range 20 Terrain Scan Density 10 Jamming Range 16 Cloak Strength 4 Additional Mass Support 6 Base Temperature (-) 100 EM Shielding 3 Armor Coverage 750 Resistance: TH 30 Weapon Cycling 25 Evasion (%) 50 Targeting Accuracy 8 Recoil Reduction 6 Offensive Hacking 12 Defensive Hacking 12 Relay Coupler Types 10 Relay Coupler Value 350 Authchip Count 1 Item Schematics ----------------- Hvy. Assault Cannon | -8/Materials | Scanalyzed Arm. Huge Wheel | -8/Materials | Scanalyzed Adv. Heavy Treads | -4/Factory | Scanalyzed Imp. Lightning Gun | -3/Testing | Archive Robot Schematics ------------------ R-10 Processor | -3/Testing | Archive R-06 Scavenger | -3/Testing | Archive Fabricated ------------ Nothing Alien Tech Used ----------------- None Achievements -------------- None Challenges ------------ None Game ------ Seed CoolantGrapheneSaw Manual? 0 Play Time 12:10:44 Cumulative 650.4 hours Start 2023.03.03 @ 18:14:14 End 2023.03.11 @ 15:04:58 Sessions 33 Manual Loads 0 Difficulty Rogue Special Mode None Game No. 73 Rogue 58 Adventurer 5 Explorer 10 Win Type - Total 26 Types 6/7/5/0/3/1/3/0/1 Lore% 89 Gallery% 94 Achievement% 85 Wizard Run 0 Options --------- ASCII 0 Keyboard 1 Movement Arrows Keybinds 0 Fullscreen 2 Font 18/SmallcapsGlow Map View 76x50 Tactical HUD 1 Map Filters NONE Filters NONE Steam 1 RUN: 292635f2-228f-47ff-a3e8-76e3f4f1f4be